Workbook

Sheet TOTAL FUNCFAC
A1: PacifiCorp
A2: 12 Months Ended June 2012
A3: FUNCTIONAL FACTORS
A6: Function | B6: Description | C6: Production | D6: Transmission | E6: DPW | F6: CUST | G6: DMSC | H6: Total
A7: ACCMDIT | B7: Deferred Income Tax | C7: 0.7901889631 | D7: 0.08183803894 | E7: 0.123818049 | F7: 0.004154949013 | G7: 0 | H7: 1
A8: BOOKDEPR | B8: Book Depreciation | C8: 0.5492423176 | D8: 0.1615167738 | E8: 0.2860596828 | F8: 0.003181225785 | G8: 0 | H8: 1
A9: COM_EQ | B9: Communication Equipment Acct 397 | C9: 0 | D9: 0 | E9: 0 | F9: 0 | G9: 0 | H9: 0
A10: CUST | B10: Distribution Retail | C10: 0 | D10: 0 | E10: 0 | F10: 1 | G10: 0 | H10: 1
A11: CWC | B11: Cash Working Capital | C11: 0.6976620396 | D11: 0.1608099826 | E11: 0.09544854247 | F11: 0.03823625013 | G11: 0.007843185269 | H11: 1
A12: DDS2 | B12: Deferred Debits - Situs | C12: 0.8555329317 | D12: 0.01076861357 | E12: 0.0147511242 | F12: 0.1577788074 | G12: -0.03883147689 | H12: 1
A13: DDS6 | B13: Deferred Debits - Situs | C13: 0 | D13: 0 | E13: 0 | F13: 0 | G13: 0 | H13: 0
A14: DDSO2 | B14: Deferred Debits - System Overhead | C14: 0.1074928324 | D14: 0.03583094413 | E14: 0.2149856648 | F14: 0 | G14: 0.6416905587 | H14: 1
A15: DDSO6 | B15: Deferred Debits - System Overhead | C15: 0 | D15: 0 | E15: 0 | F15: 0 | G15: 1 | H15: 1
A16: DEFSG | B16: Deferred Debit - System Generation | C16: 0.6929420894 | D16: 0.3070579106 | E16: 0 | F16: 0 | G16: 0 | H16: 1
A17: DITEXP | B17: Deferred Income Tax - Expense | C17: 0.9540521863 | D17: -0.0178028789 | E17: 0.06056502516 | F17: 0.003185667421 | G17: 0 | H17: 1
A18: DMSC | B18: Distribution Miscellaneous | C18: 0 | D18: 0 | E18: 0 | F18: 0 | G18: 1 | H18: 1
A19: DPW | B19: Distribution Poles & Wires | C19: 0 | D19: 0 | E19: 1 | F19: 0 | G19: 0 | H19: 1
A20: ESD | B20: Environmental Services Department | C20: 0.3 | D20: 0.1 | E20: 0.6 | F20: 0 | G20: 0 | H20: 1
A21: FERC | B21: FERC Fees | C21: 0.5178365498 | D21: 0.4821634502 | E21: 0 | F21: 0 | G21: 0 | H21: 1
A22: FIT | B22: Federal Income Taxes | C22: 1.168884457 | D22: 0.03608376683 | E22: -0.1776464822 | F22: -0.017789926 | G22: -0.009531816108 | H22: 1
A23: G | B23: General Plant | C23: 0.3372596548 | D23: 0.1851013957 | E23: 0.4525453903 | F23: 0.02509355915 | G23: 0 | H23: 1
A24: G-DGP | B24: General Plant - DGP Factor | C24: 0.6971287669 | D24: 0.3028712331 | E24: 0 | F24: 0 | G24: 0 | H24: 1
A25: G-DGU | B25: General Plant - DGU Factor | C25: 0.6971287669 | D25: 0.3028712331 | E25: 0 | F25: 0 | G25: 0 | H25: 1
A26: GP | B26: Total Plant | C26: 0.505310413 | D26: 0.2129646467 | E26: 0.2751478325 | F26: 0.00657710777 | G26: 0 | H26: 1
A27: G-SG | B27: General Plant - SG Factor | C27: 0.9989821595 | D27: 0.001017840482 | E27: 0 | F27: 0 | G27: 0 | H27: 1
A28: G-SITUS | B28: General Plant - SITUS Factor | C28: 0 | D28: 0.2540122855 | E28: 0.7459877145 | F28: 0 | G28: 0 | H28: 1
A29: I | B29: Intangible Plant | C29: 0.555823926 | D29: 0.1476299715 | E29: 0.1424550101 | F29: 0.1540910924 | G29: 0 | H29: 1
A30: IBT | B30: Income Before Taxes | C30: 1.336400196 | D30: 0.07187509383 | E30: -0.3538532337 | F30: -0.03543567406 | G30: -0.01898638189 | H30: 1
A31: I-DGP | B31: Intangible Plant - DGP Factor | C31: 1 | D31: 0 | E31: 0 | F31: 0 | G31: 0 | H31: 1
A32: I-DGU | B32: Intangible Plant - DGU Factor | C32: 1 | D32: 0 | E32: 0 | F32: 0 | G32: 0 | H32: 1
A33: I-SG | B33: Intangible Plant - SG Factor | C33: 0.855366954 | D33: 0.144633046 | E33: 0 | F33: 0 | G33: 0 | H33: 1
A34: I-SITUS | B34: Intangible Plant - SITUS Factor | C34: 0.02521927009 | D34: 0.4584848484 | E34: 0.5162958815 | F34: 0 | G34: 0 | H34: 1
A35: LABOR | B35: Direct Labor Expense | C35: 0.4357726636 | D35: 0.07202827842 | E35: 0.3463882048 | F35: 0.1458108532 | G35: 0 | H35: 1
A36: MSS | B36: Materials & Supplies | C36: 0.781803054 | D36: 0.006070294994 | E36: 0.212126651 | F36: 0 | G36: 0 | H36: 1
A37: NONE | B37: Not Functionalized | C37: 0 | D37: 0 | E37: 0 | F37: 0 | G37: 0 | H37: 0
A38: NUTIL | B38: Non-Utility | C38: 0 | D38: 0 | E38: 0 | F38: 0 | G38: 0 | H38: 0
A39: OTHDGP | B39: Other Revenues - DGP Factor | C39: 0.578747641 | D39: 0.421252359 | E39: 0 | F39: 0 | G39: 0 | H39: 1
A40: OTHDGU | B40: Other Revenues - DGU Factor | C40: 0.578747641 | D40: 0.421252359 | E40: 0 | F40: 0 | G40: 0 | H40: 1
A41: OTHSE | B41: Other Revenues - SE Factor | C41: 0 | D41: 1 | E41: 0 | F41: 0 | G41: 0 | H41: 1
A42: OTHSG | B42: Other Revenues - SG Factor | C42: 0.578747641 | D42: 0.421252359 | E42: 0 | F42: 0 | G42: 0 | H42: 1
A43: OTHSGR | B43: Other Revenues - Rolled-In SG Factor | C43: 0.578747641 | D43: 0.421252359 | E43: 0 | F43: 0 | G43: 0 | H43: 1
A44: OTHSITUS | B44: Other Revenues - SITUS | C44: 0.005769668146 | D44: 0 | E44: 0 | F44: 0 | G44: 0.9942303319 | H44: 1
A45: OTHSO | B45: Other Revenues - SO Factor | C45: 0 | D45: 0 | E45: 0 | F45: 0 | G45: 1 | H45: 1
A46: P | B46: Production | C46: 1 | D46: 0 | E46: 0 | F46: 0 | G46: 0 | H46: 1
A47: PT | B47: Production / Transmission | C47: 0.7209832517 | D47: 0.2790167483 | E47: 0 | F47: 0 | G47: 0 | H47: 1
A48: PTD | B48: Prod, Trans, Dist Plant | C48: 0.5089172826 | D48: 0.1969483272 | E48: 0.2941343902 | F48: 0 | G48: 0 | H48: 1
A49: REVREQ | B49: Revenue Requirement | C49: 0.6715402532 | D49: 0.1587111156 | E49: 0.1359418576 | F49: 0.02806304085 | G49: 0.005743732733 | H49: 1
A50: SCHMA | B50: Schedule M Additions | C50: 0.5157780521 | D50: 0.177851761 | E50: 0.2920776954 | F50: 0.01260429856 | G50: 0.001688192946 | H50: 1
A51: SCHMAF | B51: Schedule M Additions - Flow Through | C51: 1 | D51: 0 | E51: 0 | F51: 0 | G51: 0 | H51: 1
A52: SCHMAP | B52: Schedule M Additions - Permanent | C52: 0.4722093606 | D52: 0.1386245714 | E52: 0.3112078694 | F52: 0.07795819859 | G52: 0 | H52: 1
A53: SCHMAP-SO | B53: Schedule M Additions - Permanent-SO | C53: 0.4669571582 | D53: 0.140004066 | E53: 0.3143047919 | F53: 0.07873398392 | G53: 0 | H53: 1
A54: SCHMAT | B54: Schedule M Additions - Temporary | C54: 0.5161602312 | D54: 0.178195857 | E54: 0.2919098879 | F54: 0.01203102232 | G54: 0.001703001564 | H54: 0
A55: SCHMAT-GPS | B55: Schedule M Additions - Temporary-GPS | C55: 0 | D55: 0 | E55: 0 | F55: 0 | G55: 0 | H55: 0
A56: SCHMAT-SE | B56: Schedule M Additions - Temporary-SE | C56: 1 | D56: 0 | E56: 0 | F56: 0 | G56: 0 | H56: 1
A57: SCHMAT-SITUS | B57: Schedule M Additions - Temporary-SITUS | C57: 0.6878999781 | D57: 0.1122395498 | E57: 0.1656118294 | F57: 0.01025846064 | G57: 0.02399018211 | H57: 1
A58: SCHMAT-SNP | B58: Schedule M Additions - Temporary-SNP | C58: 0.5036193262 | D58: 0.2195659943 | E58: 0.2765958506 | F58: 0.0002188289395 | G58: 0 | H58: 1
A59: SCHMAT-SO | B59: Schedule M Additions - Temporary-SO | C59: 0.4666131874 | D59: 0.1392542802 | E59: 0.314658678 | F59: 0.07947385445 | G59: 0 | H59: 1
A60: SCHMD | B60: Schedule M Deductions | C60: 0.6269112017 | D60: 0.1456646333 | E60: 0.1977015585 | F60: 0.005214586875 | G60: 0.02450801962 | H60: 1
A61: SCHMDF | B61: Schedule M Deductions - Flow Through | C61: 1 | D61: 0 | E61: 0 | F61: 0 | G61: 0 | H61: 1
A62: SCHMDP | B62: Schedule M Deductions - Permanent | C62: 0.4590760258 | D62: 0.07380029802 | E62: 0.3312283458 | F62: 0.1358953304 | G62: 0 | H62: 1
A63: SCHMDP-SO | B63: Schedule M Deductions - Permanent- SO | C63: 0.4357726636 | D63: 0.07202827842 | E63: 0.3463882048 | F63: 0.1458108532 | G63: 0 | H63: 1
A64: SCHMDT | B64: Schedule M Deductions - Temporary | C64: 0.6280160174 | D64: 0.1461376977 | E64: 0.1968225861 | F64: 0.004354349213 | G64: 0.0246693496 | H64: 1
A65: SCHMDT-GPS | B65: Schedule M Deductions - Temporary-GPS | C65: 0.5035611251 | D65: 0.2197931888 | E65: 0.2766456861 | F65: 0 | G65: 0 | H65: 1
A66: SCHMDT-SG | B66: Schedule M Deductions - Temporary-SG | C66: 1 | D66: 0 | E66: 0 | F66: 0 | G66: 0 | H66: 1
A67: SCHMDT-SITUS | B67: Schedule M Deductions - Temporary-SITUS | C67: 0.5403086482 | D67: 0.0716587668 | E67: 0.1871749065 | F67: 0.06606595506 | G67: 0.1347917234 | H67: 1
A68: SCHMDT-SNP | B68: Schedule M Deductions - Temporary-SNP | C68: 0.5035611251 | D68: 0.2197931888 | E68: 0.2766456861 | F68: 0 | G68: 0 | H68: 1
A69: SCHMDT-SO | B69: Schedule M Deductions - Temporary-SO | C69: 0.4427177689 | D69: 0.1608150767 | E69: 0.3665326961 | F69: 0.02993445835 | G69: 0 | H69: 1
A70: T | B70: Transmission | C70: 0 | D70: 1 | E70: 0 | F70: 0 | G70: 0 | H70: 1
A71: TAXDEPR | B71: Tax Depreciation | C71: 0.5750385769 | D71: 0.1785119295 | E71: 0.2413763575 | F71: 0.00507313606 | G71: 0 | H71: 1
A72: TD | B72: Transmission / Distribution | C72: 0 | D72: 0.4427396804 | E72: 0.5572603196 | F72: 0 | G72: 0 | H72: 1

Sheet TAX DEPR
A1: =+'TOTAL FUNCFAC'!$A$1 -> PacifiCorp
A2: =+'TOTAL FUNCFAC'!A2 -> 12 Months Ended June 2012
A3: Tax Depreciation
B5: Total | C5: Production | D5: Transmission | E5: Distribution | F5: General | G5: Mining
A8: Total | B8: =SUM(C8:G8) -> 1476944796 | C8: =800033740-G8 -> 782816491 | D8: 244142091 | E8: 320791443 | F8: 111977522 | G8: 17217249
A12: Conversion to COS Functions | B12: Total | C12: Pro | D12: Trn | E12: Dis | F12: Retail | G12: Misc
A14: Percent of GenPlant in Functions | B14: =SUM(C14:F14) -> 1.0672541 | C14: 0.4786414092 | D14: 0.186238612 | E14: 0.3351199788 | F14: 0.06725409965 | G14: 0
A15: (%'s developed in JAM June 2012 -
A16: use "Total Plant" variable)
A18: Allocation of GenPlant to Functions | B18: =SUM(C18:F18) -> 119508469.4 | C18: =+$F$8*C14 -> 53597078.93 | D18: =+$F$8*D14 -> 20854538.27 | E18: =+$F$8*E14 -> 37525904.8 | F18: =+$F$8*F14 -> 7530947.424 | G18: =+$F$8*G14 -> 0
A19: Assignment of Mining to Prod Function | B19: =SUM(C19:F19) -> 17217249 | C19: =G8 -> 17217249
A21: Adjusted Totals | B21: =SUM(C21:F21) -> 1484475743 | C21: =+C8+C18+C19 -> 853630818.9 | D21: =+D8+D18+D19 -> 264996629.3 | E21: =+E8+E18+E19 -> 358317347.8 | F21: =+F18+F19 -> 7530947.424 | G21: =+G18+G19 -> 0
A24: TAXDEPR FACTOR | B24: =SUM(C24:F24) -> 1 | C24: =+C21/$B$21 -> 0.5750385769 | D24: =+D21/$B$21 -> 0.1785119295 | E24: =+E21/$B$21 -> 0.2413763575 | F24: =+F21/$B$21 -> 0.00507313606 | G24: =+G21/$B$21 -> 0
A330: TAXDEPR Factor | C330: =#REF!/#REF! ->  | D330: =#REF!/#REF! ->  | E330: =#REF!/#REF! ->  | F330: =#REF!/#REF! ->  | G330: =#REF!/#REF! -> 

Sheet GROSS PLANT
A2: =+'TOTAL FUNCFAC'!A2 -> 12 Months Ended June 2012
A3: Gross Plant
A4: (In 000's)
B6: Alloc.
A7: Description | B7: Factor | C7: Funct. | D7: Amount | E7: Production | F7: Transmisssion | G7: DPW | H7: CUSTOMER | I7: DMISC
A9: Production Plant | C9: P | D9: 10311125.36 | E9: =$D9*VLOOKUP(+$C9,$C$46:$I$52,3) -> 10311125.36 | F9: =$D9*VLOOKUP(+$C9,$C$46:$I$52,4) -> 0 | G9: =$D9*VLOOKUP(+$C9,$C$46:$I$52,5) -> 0 | H9: =$D9*VLOOKUP(+$C9,$C$46:$I$52,6) -> 0 | I9: =$D9*VLOOKUP(+$C9,$C$46:$I$52,7) -> 0
A10: Transmission Plant | C10: T | D10: 4500576.016 | E10: =$D10*VLOOKUP(+$C10,$C$46:$I$52,3) -> 0 | F10: =$D10*VLOOKUP(+$C10,$C$46:$I$52,4) -> 4500576.016 | G10: =$D10*VLOOKUP(+$C10,$C$46:$I$52,5) -> 0 | H10: =$D10*VLOOKUP(+$C10,$C$46:$I$52,6) -> 0 | I10: =$D10*VLOOKUP(+$C10,$C$46:$I$52,7) -> 0
A11: Distribution Plant | C11: DPW | D11: 5664711.207 | E11: =$D11*VLOOKUP(+$C11,$C$46:$I$52,3) -> 0 | F11: =$D11*VLOOKUP(+$C11,$C$46:$I$52,4) -> 0 | G11: =$D11*VLOOKUP(+$C11,$C$46:$I$52,5) -> 5664711.207 | H11: =$D11*VLOOKUP(+$C11,$C$46:$I$52,6) -> 0 | I11: =$D11*VLOOKUP(+$C11,$C$46:$I$52,7) -> 0
A12: Mining | B12: SE | C12: P | D12: 290388.7555 | E12: =$D12*VLOOKUP(+$C12,$C$46:$I$52,3) -> 290388.7555 | F12: =$D12*VLOOKUP(+$C12,$C$46:$I$52,4) -> 0 | G12: =$D12*VLOOKUP(+$C12,$C$46:$I$52,5) -> 0 | H12: =$D12*VLOOKUP(+$C12,$C$46:$I$52,6) -> 0 | I12: =$D12*VLOOKUP(+$C12,$C$46:$I$52,7) -> 0
A13: General Plant
A14: Business Centers | B14: ='GENERAL PLANT'!B7 -> CN | C14: ='GENERAL PLANT'!C7 -> CUST | D14: ='GENERAL PLANT'!D7 -> 24957 | E14: =$D14*VLOOKUP(+$C14,$C$46:$I$52,3) -> 0 | F14: =$D14*VLOOKUP(+$C14,$C$46:$I$52,4) -> 0 | G14: =$D14*VLOOKUP(+$C14,$C$46:$I$52,5) -> 0 | H14: =$D14*VLOOKUP(+$C14,$C$46:$I$52,6) -> 24957 | I14: =$D14*VLOOKUP(+$C14,$C$46:$I$52,7) -> 0
A15: Utah Mine | B15: ='GENERAL PLANT'!B8 -> SE | C15: ='GENERAL PLANT'!C8 -> P | D15: ='GENERAL PLANT'!D8 -> 646 | E15: 646 | F15: 0 | G15: 0 | H15: 0 | I15: 0
B16: ='GENERAL PLANT'!B9 -> SG | C16: ='GENERAL PLANT'!C9 -> P | D16: ='GENERAL PLANT'!D9 -> 211998 | E16: 211998 | F16: 0 | G16: 0 | H16: 0 | I16: 0
B17: ='GENERAL PLANT'!B10 -> SG | C17: ='GENERAL PLANT'!C10 -> T | D17: ='GENERAL PLANT'!D10 -> 216 | E17: 0 | F17: 216 | G17: 0 | H17: 0 | I17: 0
B18: ='GENERAL PLANT'!B12 -> SO | C18: ='GENERAL PLANT'!C12 -> DPW | D18: ='GENERAL PLANT'!D12 -> 0 | E18: 0 | F18: 0 | G18: 0 | H18: 0 | I18: 0
B19: ='GENERAL PLANT'!B16 -> SG | C19: ='GENERAL PLANT'!C16 -> P | D19: ='GENERAL PLANT'!D16 -> 0 | E19: 0 | F19: 0 | G19: 0 | H19: 0 | I19: 0
B20: ='GENERAL PLANT'!B17 -> SG | C20: ='GENERAL PLANT'!C17 -> DPW | D20: ='GENERAL PLANT'!D17 -> 0 | E20: 0 | F20: 0 | G20: 0 | H20: 0 | I20: 0
B21: ='GENERAL PLANT'!B18 -> SG | C21: ='GENERAL PLANT'!C18 -> P | D21: ='GENERAL PLANT'!D18 -> 0 | E21: 0 | F21: 0 | G21: 0 | H21: 0 | I21: 0
A22: General Plant | B22: ='GENERAL PLANT'!B19 -> SITUS | C22: ='GENERAL PLANT'!C19 -> DPW | D22: ='GENERAL PLANT'!D19 -> 218642 | E22: 0 | F22: 0 | G22: 218642 | H22: 0 | I22: 0
A23: General Plant | B23: ='GENERAL PLANT'!B20 -> SITUS | C23: ='GENERAL PLANT'!C20 -> P | D23: ='GENERAL PLANT'!D20 -> 0 | E23: 0 | F23: 0 | G23: 0 | H23: 0 | I23: 0
A24: General Plant | B24: ='GENERAL PLANT'!B21 -> SITUS | C24: ='GENERAL PLANT'!C21 -> TD | D24: ='GENERAL PLANT'!D21 -> 294275 | E24: 0 | F24: 130287.2194 | G24: 163987.7806 | H24: 0 | I24: 0
A25: Total General Plant | D25: =SUBTOTAL(9,D14:D24) -> 750734 | E25: 212644 | F25: 130503.2194 | G25: 382629.7806 | H25: 24957 | I25: 0
A27: Intangible Plant
A28: Customer Service Sys | B28: ='INTANGIBLE PLANT'!A7 -> CN | C28: ='INTANGIBLE PLANT'!B7 -> CUST | D28: ='INTANGIBLE PLANT'!C7 -> 121883.8904 | E28: =$D28*VLOOKUP(+$C28,$C$46:$I$53,3) -> 0 | F28: =$D28*VLOOKUP(+$C28,$C$46:$I$53,4) -> 0 | G28: =$D28*VLOOKUP(+$C28,$C$46:$I$53,5) -> 0 | H28: =$D28*VLOOKUP(+$C28,$C$46:$I$53,6) -> 121883.8904 | I28: =$D28*VLOOKUP(+$C28,$C$46:$I$53,7) -> 0
A29: Customer Service Sys | B29: ='INTANGIBLE PLANT'!A8 -> SE | C29: ='INTANGIBLE PLANT'!B8 -> P | D29: ='INTANGIBLE PLANT'!C8 -> 3661.730495 | E29: 3661.730495 | F29: 0 | G29: 0 | H29: 0 | I29: 0
A30: Washington Hydro | B30: ='INTANGIBLE PLANT'!A9 -> SG | C30: ='INTANGIBLE PLANT'!B9 -> P | D30: ='INTANGIBLE PLANT'!C9 -> 0 | E30: 0 | F30: 0 | G30: 0 | H30: 0 | I30: 0
A31: Utah Hydro | B31: ='INTANGIBLE PLANT'!A10 -> SG | C31: ='INTANGIBLE PLANT'!B10 -> T | D31: ='INTANGIBLE PLANT'!C10 -> 47608 | E31: 0 | F31: 47608 | G31: 0 | H31: 0 | I31: 0
A32: Colorado Steam-UPD | B32: ='INTANGIBLE PLANT'!A11 -> SG | C32: ='INTANGIBLE PLANT'!B11 -> P | D32: ='INTANGIBLE PLANT'!C11 -> 232664.6302 | E32: 232664.6302 | F32: 0 | G32: 0 | H32: 0 | I32: 0
B33: ='INTANGIBLE PLANT'!A12 -> SG | C33: ='INTANGIBLE PLANT'!B12 -> P | D33: ='INTANGIBLE PLANT'!C12 -> 48891.42546 | E33: 48891.42546 | F33: 0 | G33: 0 | H33: 0 | I33: 0
A34: Oregon Trans | B34: ='INTANGIBLE PLANT'!A15 -> SO | C34: ='INTANGIBLE PLANT'!B15 -> P | D34: ='INTANGIBLE PLANT'!C15 -> 29274.95172 | E34: 29274.95172 | F34: 0 | G34: 0 | H34: 0 | I34: 0
A35: Utah Mine | B35: ='INTANGIBLE PLANT'!A16 -> SO | C35: ='INTANGIBLE PLANT'!B16 -> PTD | D35: ='INTANGIBLE PLANT'!C16 -> 303714.4817 | E35: 152938.8061 | F35: 66754.37442 | G35: 84021.30117 | H35: 0 | I35: 0
A36: Utah | B36: ='INTANGIBLE PLANT'!A17 -> SO | C36: ='INTANGIBLE PLANT'!B17 -> TD | D36: ='INTANGIBLE PLANT'!C17 -> 12687.8228 | E36: 0 | F36: 5617.402612 | G36: 7070.42019 | H36: 0 | I36: 0
A37: Utah G/O | B37: ='INTANGIBLE PLANT'!A18 -> SO | C37: ='INTANGIBLE PLANT'!B18 -> LABOR | D37: ='INTANGIBLE PLANT'!C18 -> 0 | E37: 0 | F37: 0 | G37: 0 | H37: 0 | I37: 0
A38: Utah G/O | B38: ='INTANGIBLE PLANT'!A23 -> SITUS | C38: ='INTANGIBLE PLANT'!B23 -> TD | D38: ='INTANGIBLE PLANT'!C23 -> 8135.86409 | E38: 0 | F38: 3602.069867 | G38: 4533.794223 | H38: 0 | I38: 0
A39: Total Intangible Plant | D39: =SUBTOTAL(9,D28:D38) -> 808522.7968 | E39: 467431.5439 | F39: 123581.8469 | G39: 95625.51558 | H39: 121883.8904 | I39: 0
A41: Total Gross Plant | D41: =SUBTOTAL(9,D8:D39) -> 22326058.13 | E41: 11281589.65 | F41: 4754661.082 | G41: 6142966.503 | H41: 146840.8904 | I41: 0
B43: GP Factor | D43: =SUM(E43:I43) -> 1 | E43: =E41/$D41 -> 0.505310413 | F43: =F41/$D41 -> 0.2129646467 | G43: =G41/$D41 -> 0.2751478325 | H43: =H41/$D41 -> 0.00657710777 | I43: =I41/$D41 -> 0
B46: Functional Allocators: | E46: Prod | F46: Trans | G46: DPW | H46: CUST | I46: DMISC
C47: P | D47: =SUM(E47:F47) -> 1 | E47: ='FORM 1'!$C$13 -> 1 | F47: ='FORM 1'!$D$13 -> 0 | G47: ='FORM 1'!$E$13 -> 0 | H47: ='FORM 1'!$F$13 -> 0 | I47: ='FORM 1'!$G$13 -> 0
C48: T | D48: =SUM(E48:F48) -> 1 | E48: ='FORM 1'!$C$14 -> 0 | F48: ='FORM 1'!$D$14 -> 1 | G48: ='FORM 1'!$E$14 -> 0 | H48: ='FORM 1'!$F$14 -> 0 | I48: ='FORM 1'!$G$14 -> 0
C49: TD | D49: =SUM(E49:I49) -> 1 | E49: ='FORM 1'!$C$18 -> 0 | F49: ='FORM 1'!$D$18 -> 0.4427396804 | G49: ='FORM 1'!$E$18 -> 0.5572603196 | H49: ='FORM 1'!$F$18 -> 0 | I49: ='FORM 1'!$G$18 -> 0
C50: CUST | D50: =SUM(E50:I50) -> 1 | E50: 0 | F50: 0 | G50: 0 | H50: 1 | I50: 0
C51: DPW | D51: =SUM(E51:I51) -> 1 | E51: 0 | F51: 0 | G51: 1 | H51: 0 | I51: 0
C52: PTD | D52: =SUM(E52:I52) -> 1 | E52: ='FORM 1'!$C$16 -> 0.5035611251 | F52: ='FORM 1'!$D$16 -> 0.2197931888 | G52: ='FORM 1'!$E$16 -> 0.2766456861 | H52: ='FORM 1'!$F$16 -> 0 | I52: ='FORM 1'!$G$16 -> 0
C53: LABOR | D53: =SUM(E53:I53) -> 1 | E53: ='SCH M'!F140 -> 0.4357726636 | F53: ='SCH M'!G140 -> 0.07202827842 | G53: ='SCH M'!H140 -> 0.3463882048 | H53: ='SCH M'!I140 -> 0.1458108532 | I53: ='SCH M'!J140 -> 0

Sheet FORM 1
A1: =+'TOTAL FUNCFAC'!A1 -> PacifiCorp
A2: =+'TOTAL FUNCFAC'!A2 -> 12 Months Ended June 2012
A3: FERC FORM 1 Funtionalization Factors
A6: Factor | B6: Total | C6: Production | D6: Transmission | E6: DPW | F6: CUST | G6: DMSC
A8: PLANT | B8: =SUM(C8:G8) -> 20476412.58 | C8: =+'GROSS PLANT'!D9 -> 10311125.36 | D8: =+'GROSS PLANT'!D10 -> 4500576.016 | E8: =+'GROSS PLANT'!D11 -> 5664711.207 | F8: 0 | G8: 0
A9: UNCLASSIFIED PLANT | B9: =SUM(C9:G9) -> 0 | F9: 0 | G9: 0
A10: TOTAL PLANT | B10: =SUM(C10:G10) -> 20476412.58 | C10: =C8+C9 -> 10311125.36 | D10: =D8+D9 -> 4500576.016 | E10: =E8+E9 -> 5664711.207 | F10: 0 | G10: 0
A12: PLANT %
A13: P | B13: =SUM(C13:G13) -> 1 | C13: =C10/C10 -> 1
A14: T | B14: 1 | D14: =D10/D10 -> 1
A15: DPW | B15: 1 | E15: =E10/E10 -> 1
A16: PTD | B16: 1 | C16: =C10/$B10 -> 0.5035611251 | D16: =D10/$B10 -> 0.2197931888 | E16: =E10/$B10 -> 0.2766456861 | F16: =F10/$B10 -> 0 | G16: =G10/$B10 -> 0
A17: PT | B17: 1 | C17: =C10/(C10+D10) -> 0.696147262 | D17: =D10/(C10+D10) -> 0.303852738
A18: TD | B18: 1 | D18: =D10/(D10+E10) -> 0.4427396804 | E18: =E10/(D10+E10) -> 0.5572603196
A23: LABOR | B23: =SUM(C23:G23) -> 315263720 | C23: =137383311 -> 137383311 | D23: =22707903 -> 22707903 | E23: 109203634 | F23: =40029642+5939230 -> 45968872 | G23: 0
A25: LABOR % | B25: =B23/$B23 -> 1 | C25: =C23/$B23 -> 0.4357726636 | D25: =D23/$B23 -> 0.07202827842 | E25: =E23/$B23 -> 0.3463882048 | F25: =F23/$B23 -> 0.1458108532 | G25: =G23/$B23 -> 0
A27: Source: Ferc Form 1 (Dec 2011) - pg. 354
A30: Material & Supplies | B30: =SUM(C30:G30) -> 83578640 | C30: 65342036 | D30: 507347 | E30: 17729257 | F30: 0 | G30: 0
A32: Material & Supplies % | B32: =B30/$B30 -> 1 | C32: 0.781803054 | D32: 0.006070294994 | E32: 0.212126651 | F32: 0 | G32: 0
A34: Source: Ferc Form 1 (Dec 2011) - pg. 227, Total Company
A37: FERC (mWh) | B37: 30244302 | C37: =B37-D37 -> 15661605 | D37: 14582697 | E37: 0 | F37: 0 | G37: 0
A39: FERC % | B39: =B37/$B37 -> 1 | C39: =C37/$B37 -> 0.5178365498 | D39: =D37/$B37 -> 0.4821634502 | E39: 0 | F39: 0 | G39: 0
A41: Source: FERC reporting requirment No. 582 - (from Transmissio Dept., 10-08-12)

Sheet BOOKDPR
A1: =+'TOTAL FUNCFAC'!$A$1 -> PacifiCorp
A2: =+'TOTAL FUNCFAC'!A2 -> 12 Months Ended June 2012
A3: Depreciation Expense
A6: Function | B6: Amount | C6: Production | D6: Transmission | E6: DPW | F6: CUST | G6: DMSC
A7: CUST | B7: 1748.08861 | C7: =VLOOKUP($A7,$A$16:$G$22,3,FALSE)*$B7 -> 0 | D7: =VLOOKUP($A7,$A$16:$G$22,4,FALSE)*$B7 -> 0 | E7: =VLOOKUP($A7,$A$16:$G$22,5,FALSE)*$B7 -> 0 | F7: =VLOOKUP($A7,$A$16:$G$22,6,FALSE)*$B7 -> 1748.08861 | G7: =VLOOKUP($A7,$A$16:$G$22,7,FALSE)*$B7 -> 0
A8: DPW | B8: 153055.8875 | C8: =VLOOKUP($A8,$A$16:$G$22,3,FALSE)*$B8 -> 0 | D8: =VLOOKUP($A8,$A$16:$G$22,4,FALSE)*$B8 -> 0 | E8: =VLOOKUP($A8,$A$16:$G$22,5,FALSE)*$B8 -> 153055.8875 | F8: =VLOOKUP($A8,$A$16:$G$22,6,FALSE)*$B8 -> 0 | G8: =VLOOKUP($A8,$A$16:$G$22,7,FALSE)*$B8 -> 0
A9: P | B9: =273964+354+13171+836+5959 -> 294284 | C9: =VLOOKUP($A9,$A$16:$G$22,3,FALSE)*$B9 -> 294284 | D9: =VLOOKUP($A9,$A$16:$G$22,4,FALSE)*$B9 -> 0 | E9: =VLOOKUP($A9,$A$16:$G$22,5,FALSE)*$B9 -> 0 | F9: =VLOOKUP($A9,$A$16:$G$22,6,FALSE)*$B9 -> 0 | G9: =VLOOKUP($A9,$A$16:$G$22,7,FALSE)*$B9 -> 0
A10: PTD | B10: 14944.60849 | C10: =VLOOKUP($A10,$A$16:$G$22,3,FALSE)*$B10 -> 7525.523865 | D10: =VLOOKUP($A10,$A$16:$G$22,4,FALSE)*$B10 -> 3284.723155 | E10: =VLOOKUP($A10,$A$16:$G$22,5,FALSE)*$B10 -> 4134.36147 | F10: =VLOOKUP($A10,$A$16:$G$22,6,FALSE)*$B10 -> 0 | G10: =VLOOKUP($A10,$A$16:$G$22,7,FALSE)*$B10 -> 0
A11: T | B11: 85469 | C11: =VLOOKUP($A11,$A$16:$G$22,3,FALSE)*$B11 -> 0 | D11: =VLOOKUP($A11,$A$16:$G$22,4,FALSE)*$B11 -> 85469 | E11: =VLOOKUP($A11,$A$16:$G$22,5,FALSE)*$B11 -> 0 | F11: =VLOOKUP($A11,$A$16:$G$22,6,FALSE)*$B11 -> 0 | G11: =VLOOKUP($A11,$A$16:$G$22,7,FALSE)*$B11 -> 0
A12: Book Depreciation | B12: =SUM(B7:B11) -> 549501.5846 | C12: 301809.5239 | D12: 88753.72316 | E12: 157190.249 | F12: 1748.08861 | G12: 0
A13: BookDepr Factor | B13: =B12/$B12 -> 1 | C13: 0.5492423176 | D13: 0.1615167738 | E13: 0.2860596828 | F13: 0.003181225785 | G13: 0
A16: P | B16: ='FORM 1'!$B$13 -> 1 | C16: ='FORM 1'!$C$13 -> 1 | D16: ='FORM 1'!$D$13 -> 0 | E16: ='FORM 1'!$E$13 -> 0 | F16: ='FORM 1'!$F$13 -> 0 | G16: ='FORM 1'!$G$13 -> 0
A17: T | B17: ='FORM 1'!$B$14 -> 1 | C17: ='FORM 1'!$C$14 -> 0 | D17: ='FORM 1'!$D$14 -> 1 | E17: ='FORM 1'!$E$14 -> 0 | F17: ='FORM 1'!$F$14 -> 0 | G17: ='FORM 1'!$G$14 -> 0
A18: DPW | B18: ='FORM 1'!$B$15 -> 1 | C18: ='FORM 1'!$C$15 -> 0 | D18: ='FORM 1'!$D$15 -> 0 | E18: ='FORM 1'!$E$15 -> 1 | F18: ='FORM 1'!$F$15 -> 0 | G18: ='FORM 1'!$G$15 -> 0
A19: CUST | B19: ='FORM 1'!$B$15 -> 1 | C19: 0 | D19: 0 | E19: 0 | F19: 1 | G19: 0
A20: PTD | B20: ='FORM 1'!$B$16 -> 1 | C20: ='FORM 1'!$C$16 -> 0.5035611251 | D20: ='FORM 1'!$D$16 -> 0.2197931888 | E20: ='FORM 1'!$E$16 -> 0.2766456861 | F20: ='FORM 1'!$F$16 -> 0 | G20: ='FORM 1'!$G$16 -> 0
A21: TD | B21: ='FORM 1'!$B$18 -> 1 | C21: ='FORM 1'!$C$18 -> 0 | D21: ='FORM 1'!$D$18 -> 0.4427396804 | E21: ='FORM 1'!$E$18 -> 0.5572603196 | F21: ='FORM 1'!$F$18 -> 0 | G21: ='FORM 1'!$G$18 -> 0
A22: G | B22: ='GENERAL PLANT'!$D$38 -> 1 | C22: ='GENERAL PLANT'!$E$38 -> 0.3372596548 | D22: ='GENERAL PLANT'!$F$38 -> 0.1851013957 | E22: ='GENERAL PLANT'!$G$38 -> 0.4525453903 | F22: ='GENERAL PLANT'!$H$38 -> 0.02509355915 | G22: ='GENERAL PLANT'!$I$38 -> 0

Sheet OTHER REVENUE
A1: =+'TOTAL FUNCFAC'!A1 -> PacifiCorp
A2: =+'TOTAL FUNCFAC'!A2:A2 -> 12 Months Ended June 2012
A3: Account 456
A5: Main
A6: Account | B6: Factor | C6: Function | D6: Amount | E6: Production | F6: Transmission | G6: DPW | H6: Customer | I6: DMSC
A7: 456 | B7: OTHER | C7: DMSC | D7: 1869.87768 | E7: =$D7*VLOOKUP(+$C7,$C$29:$I35,3,FALSE) -> 0 | F7: =$D7*VLOOKUP(+$C7,$C$29:$I35,4,FALSE) -> 0 | G7: =$D7*VLOOKUP(+$C7,$C$29:$I35,5,FALSE) -> 0 | H7: =$D7*VLOOKUP(+$C7,$C$29:$I35,6,FALSE) -> 0 | I7: =$D7*VLOOKUP(+$C7,$C$29:$I35,7,FALSE) -> 1869.87768
A8: 456 | B8: SG | C8: P | D8: 31655.81744 | E8: =$D8*VLOOKUP(+$C8,$C$29:$I36,3,FALSE) -> 31655.81744 | F8: =$D8*VLOOKUP(+$C8,$C$29:$I36,4,FALSE) -> 0 | G8: =$D8*VLOOKUP(+$C8,$C$29:$I36,5,FALSE) -> 0 | H8: =$D8*VLOOKUP(+$C8,$C$29:$I36,6,FALSE) -> 0 | I8: =$D8*VLOOKUP(+$C8,$C$29:$I36,7,FALSE) -> 0
A9: 456 | B9: SE | C9: T | D9: 11357.47502 | E9: =$D9*VLOOKUP(+$C9,$C$29:$I37,3,FALSE) -> 0 | F9: =$D9*VLOOKUP(+$C9,$C$29:$I37,4,FALSE) -> 11357.47502 | G9: =$D9*VLOOKUP(+$C9,$C$29:$I37,5,FALSE) -> 0 | H9: =$D9*VLOOKUP(+$C9,$C$29:$I37,6,FALSE) -> 0 | I9: =$D9*VLOOKUP(+$C9,$C$29:$I37,7,FALSE) -> 0
A10: 456 | B10: SG | C10: P | D10: 55129.94606 | E10: =$D10*VLOOKUP(+$C10,$C$29:$I38,3,FALSE) -> 55129.94606 | F10: =$D10*VLOOKUP(+$C10,$C$29:$I38,4,FALSE) -> 0 | G10: =$D10*VLOOKUP(+$C10,$C$29:$I38,5,FALSE) -> 0 | H10: =$D10*VLOOKUP(+$C10,$C$29:$I38,6,FALSE) -> 0 | I10: =$D10*VLOOKUP(+$C10,$C$29:$I38,7,FALSE) -> 0
A11: 456 | B11: SG | C11: T | D11: 63168.65075 | E11: =$D11*VLOOKUP(+$C11,$C$29:$I38,3,FALSE) -> 0 | F11: =$D11*VLOOKUP(+$C11,$C$29:$I38,4,FALSE) -> 63168.65075 | G11: =$D11*VLOOKUP(+$C11,$C$29:$I38,5,FALSE) -> 0 | H11: =$D11*VLOOKUP(+$C11,$C$29:$I38,6,FALSE) -> 0 | I11: =$D11*VLOOKUP(+$C11,$C$29:$I38,7,FALSE) -> 0
A12: 456 | B12: SO | C12: DMSC | D12: -26.57212 | E12: =$D12*VLOOKUP(+$C12,$C$29:$I39,3,FALSE) -> 0 | F12: =$D12*VLOOKUP(+$C12,$C$29:$I39,4,FALSE) -> 0 | G12: =$D12*VLOOKUP(+$C12,$C$29:$I39,5,FALSE) -> 0 | H12: =$D12*VLOOKUP(+$C12,$C$29:$I39,6,FALSE) -> 0 | I12: =$D12*VLOOKUP(+$C12,$C$29:$I39,7,FALSE) -> -26.57212
A13: 456 | B13: SITUS | C13: DMSC | D13: 51572.20121 | E13: =$D13*VLOOKUP(+$C13,$C$29:$I40,3,FALSE) -> 0 | F13: =$D13*VLOOKUP(+$C13,$C$29:$I40,4,FALSE) -> 0 | G13: =$D13*VLOOKUP(+$C13,$C$29:$I40,5,FALSE) -> 0 | H13: =$D13*VLOOKUP(+$C13,$C$29:$I40,6,FALSE) -> 0 | I13: =$D13*VLOOKUP(+$C13,$C$29:$I40,7,FALSE) -> 51572.20121
A14: 456 | B14: SITUS | C14: P | D14: 299.28124 | E14: =$D14*VLOOKUP(+$C14,$C$29:$I41,3,FALSE) -> 299.28124 | F14: =$D14*VLOOKUP(+$C14,$C$29:$I41,4,FALSE) -> 0 | G14: =$D14*VLOOKUP(+$C14,$C$29:$I41,5,FALSE) -> 0 | H14: =$D14*VLOOKUP(+$C14,$C$29:$I41,6,FALSE) -> 0 | I14: =$D14*VLOOKUP(+$C14,$C$29:$I41,7,FALSE) -> 0
A15: Total Situs Revenues | D15: =SUMIF($B:$B,"SITUS",D:D) -> 51871.48245 | E15: 299.28124 | F15: 0 | G15: 0 | H15: 0 | I15: 51572.20121
A16: Total CN Revenues | D16: =SUMIF($B:$B,"CN",D:D) -> 0 | E16: 0 | F16: 0 | G16: 0 | H16: 0 | I16: 0
A17: Total SE Revenues | D17: =SUMIF($B:$B,"SE",D:D) -> 11357.47502 | E17: 0 | F17: 11357.47502 | G17: 0 | H17: 0 | I17: 0
A18: Total SG Revenues | D18: =SUMIF($B:$B,"SG",D:D) -> 149954.4142 | E18: 86785.7635 | F18: 63168.65075 | G18: 0 | H18: 0 | I18: 0
A19: Total SO Revenues | D19: =SUMIF($B:$B,"SO",D:D) -> -26.57212 | E19: 0 | F19: 0 | G19: 0 | H19: 0 | I19: -26.57212
A20: Total Operation | D20: =SUM(D7:D14) -> 215026.6773 | E20: 87085.04474 | F20: 74526.12577 | G20: 0 | H20: 0 | I20: 53415.50677
A21: OTHSITUS | D21: =SUM(E21:I21) -> 1 | E21: =E15/$D$15 -> 0.005769668146 | F21: =F15/$D$15 -> 0 | G21: =G15/$D$15 -> 0 | H21: =H15/$D$15 -> 0 | I21: =I15/$D$15 -> 0.9942303319
A22: CN Factor | D22: 0 | E22: =IF(ISERROR(E16/$D$16)," ",(E16/$D$16)) ->  | F22: =IF(ISERROR(F16/$D$16)," ",(F16/$D$16)) ->  | G22: =IF(ISERROR(G16/$D$16)," ",(G16/$D$16)) ->  | H22: =IF(ISERROR(H16/$D$16)," ",(H16/$D$16)) ->  | I22: =IF(ISERROR(I16/$D$16)," ",(I16/$D$16)) -> 
A23: OTHSE | D23: 1 | E23: =E17/$D$17 -> 0 | F23: =F17/$D$17 -> 1 | G23: =G17/$D$17 -> 0 | H23: =H17/$D$17 -> 0 | I23: =I17/$D$17 -> 0
A24: OTHSG | D24: 1 | E24: =E18/$D$18 -> 0.578747641 | F24: =F18/$D$18 -> 0.421252359 | G24: =G18/$D$18 -> 0 | H24: =H18/$D$18 -> 0 | I24: =I18/$D$18 -> 0
A25: OTHSO | D25: 1 | E25: =E19/$D$19 -> 0 | F25: =F19/$D$19 -> 0 | G25: =G19/$D$19 -> 0 | H25: =H19/$D$19 -> 0 | I25: =I19/$D$19 -> 1
A26: Total Operation Factor | D26: 1 | E26: =E20/$D$20 -> 0.4049964676 | F26: =F20/$D$20 -> 0.3465901381 | G26: =G20/$D$20 -> 0 | H26: =H20/$D$20 -> 0 | I26: =I20/$D$20 -> 0.2484133943
D28: Total | E28: Prod | F28: Trans | G28: DPW | H28: CUST | I28: DMSC
C29: P | D29: =SUM(E29:I29) -> 1 | E29: ='FORM 1'!$C$13 -> 1 | F29: ='FORM 1'!$D$13 -> 0 | G29: ='FORM 1'!$E$13 -> 0 | H29: ='FORM 1'!$F$13 -> 0 | I29: ='FORM 1'!$G$13 -> 0
C30: T | D30: =SUM(E30:I30) -> 1 | E30: ='FORM 1'!$C$14 -> 0 | F30: ='FORM 1'!$D$14 -> 1 | G30: ='FORM 1'!$E$14 -> 0 | H30: ='FORM 1'!$F$14 -> 0 | I30: ='FORM 1'!$G$14 -> 0
C31: TD | D31: 1 | E31: ='FORM 1'!$C$18 -> 0 | F31: ='FORM 1'!$D$18 -> 0.4427396804 | G31: ='FORM 1'!$E$18 -> 0.5572603196 | H31: ='FORM 1'!$F$18 -> 0 | I31: ='FORM 1'!$G$18 -> 0
C32: CUST | D32: 1 | E32: 0 | F32: 0 | G32: 0 | H32: 1 | I32: 0
C33: DPW | D33: 1 | E33: 0 | F33: 0 | G33: 1 | H33: 0 | I33: 0
C34: PTD | D34: 1 | E34: ='FORM 1'!$C$16 -> 0.5035611251 | F34: ='FORM 1'!$D$16 -> 0.2197931888 | G34: ='FORM 1'!$E$16 -> 0.2766456861 | H34: ='FORM 1'!$F$16 -> 0 | I34: ='FORM 1'!$G$16 -> 0
C35: DMSC | D35: 1 | E35: 0 | F35: 0 | G35: 0 | H35: 0 | I35: 1

Sheet GENERAL PLANT
A1: =+'TOTAL FUNCFAC'!$A$1 -> PacifiCorp
A2: =+'TOTAL FUNCFAC'!A2 -> 12 Months Ended June 2012
A3: General Plant
B5: Alloc.
A6: Description | B6: Factor | C6: Funct. | D6: Amount | E6: Prod | F6: Trans | G6: DPW | H6: CUST | I6: DMISC
A7: Business Centers | B7: CN | C7: CUST | D7: 24957 | E7: =$D7*VLOOKUP(+$C7,$B$45:$H$51,3) -> 0 | F7: =$D7*VLOOKUP(+$C7,$B$45:$H$51,4) -> 0 | G7: =$D7*VLOOKUP(+$C7,$B$45:$H$51,5) -> 0 | H7: =$D7*VLOOKUP(+$C7,$B$45:$H$51,6) -> 24957 | I7: =$D7*VLOOKUP(+$C7,$B$45:$H$51,7) -> 0
B8: SE | C8: P | D8: =641+5 -> 646 | E8: 646 | F8: 0 | G8: 0 | H8: 0 | I8: 0
B9: SG | C9: P | D9: =152342+44149+15507 -> 211998 | E9: 211998 | F9: 0 | G9: 0 | H9: 0 | I9: 0
B10: SG | C10: T | D10: =32+45+139 -> 216 | E10: 0 | F10: 216 | G10: 0 | H10: 0 | I10: 0
B11: SG | C11: TD | D11: 0 | E11: 0 | F11: 0 | G11: 0 | H11: 0 | I11: 0
A12: General Plant | B12: SO | C12: DPW | D12: 0 | E12: 0 | F12: 0 | G12: 0 | H12: 0 | I12: 0
B13: SO | C13: PTD | D13: 243824 | E13: 122780.2878 | F13: 53590.85447 | G13: 67452.85777 | H13: 0 | I13: 0
B14: SO | C14: TD | D14: 0 | E14: 0 | F14: 0 | G14: 0 | H14: 0 | I14: 0
B15: SO | C15: P | D15: 0 | E15: 0 | F15: 0 | G15: 0 | H15: 0 | I15: 0
A16: SSGCH | B16: SG | C16: P | D16: 0 | E16: 0 | F16: 0 | G16: 0 | H16: 0 | I16: 0
A17: SSGCT | B17: SG | C17: DPW | D17: 0 | E17: 0 | F17: 0 | G17: 0 | H17: 0 | I17: 0
A18: SSGCT | B18: SG | C18: P | D18: 0 | E18: 0 | F18: 0 | G18: 0 | H18: 0 | I18: 0
B19: SITUS | C19: DPW | D19: 218642 | E19: 0 | F19: 0 | G19: 218642 | H19: 0 | I19: 0
B20: SITUS | C20: P | D20: 0 | E20: 0 | F20: 0 | G20: 0 | H20: 0 | I20: 0
B21: SITUS | C21: TD | D21: 294275 | E21: 0 | F21: 130287.2194 | G21: 163987.7806 | H21: 0 | I21: 0
A22: Total-CUST | D22: =SUMIF($C:$C,"CUST",D:D) -> 24957 | E22: 0 | F22: 0 | G22: 0 | H22: 24957 | I22: 0
A23: Total-TD | D23: =SUMIF($C:$C,"TD",D:D) -> 294275 | E23: 0 | F23: 130287.2194 | G23: 163987.7806 | H23: 0 | I23: 0
A24: Total-PTD | D24: =SUMIF($C:$C,"PTD",D:D) -> 243824 | E24: 122780.2878 | F24: 53590.85447 | G24: 67452.85777 | H24: 0 | I24: 0
A25: Total-DPW | D25: =SUMIF($C:$C,"DPW",D:D) -> 218642 | E25: 0 | F25: 0 | G25: 218642 | H25: 0 | I25: 0
A26: Total-SSGCH | D26: =SUMIF($B:$B,"SSGCH",D:D) -> 0 | E26: 0 | F26: 0 | G26: 0 | H26: 0 | I26: 0
A27: Total-SSGCT | D27: =SUMIF($B:$B,"SSGCT",D:D) -> 0 | E27: 0 | F27: 0 | G27: 0 | H27: 0 | I27: 0
A28: Total-G-SG | D28: =SUMIF($B:$B,"SG",D:D) -> 212214 | E28: 211998 | F28: 216 | G28: 0 | H28: 0 | I28: 0
A29: Total-SE | D29: =SUMIF($B:$B,"SE",D:D) -> 646 | E29: 646 | F29: 0 | G29: 0 | H29: 0 | I29: 0
A30: Total-G-Situs | D30: =SUMIF($B:$B,"SITUS",D:D) -> 512917 | E30: 0 | F30: 130287.2194 | G30: 382629.7806 | H30: 0 | I30: 0
A31: Total-SO | D31: =SUMIF($B:$B,"SO",D:D) -> 243824 | E31: 122780.2878 | F31: 53590.85447 | G31: 67452.85777 | H31: 0 | I31: 0
A32: Total-General Plant | D32: =SUM(D7:D21) -> 994558 | E32: 335424.2878 | F32: 184094.0739 | G32: 450082.6383 | H32: 24957 | I32: 0
A34: G-SG Factor | D34: =SUM(E34:I34) -> 1 | E34: =E28/$D$28 -> 0.9989821595 | F34: =F28/$D$28 -> 0.001017840482 | G34: =G28/$D$28 -> 0 | H34: =H28/$D$28 -> 0 | I34: =I28/$D$28 -> 0
A35: . | D35: =SUM(E35:I35) -> 1 | E35: =E29/$D$29 -> 1 | F35: =F29/$D$29 -> 0 | G35: =G29/$D$29 -> 0 | H35: =H29/$D$29 -> 0 | I35: =I29/$D$29 -> 0
A36: G-SITUS Factor | D36: =SUM(E36:I36) -> 1 | E36: =E30/$D$30 -> 0 | F36: =F30/$D$30 -> 0.2540122855 | G36: =G30/$D$30 -> 0.7459877145 | H36: =H30/$D$30 -> 0 | I36: =I30/$D$30 -> 0
A37: SO Factor | D37: =SUM(E37:I37) -> 1 | E37: =E31/$D$31 -> 0.5035611251 | F37: =F31/$D$31 -> 0.2197931888 | G37: =G31/$D$31 -> 0.2766456861 | H37: =H31/$D$31 -> 0 | I37: =I31/$D$31 -> 0
A38: G Allocator | D38: =SUM(E38:I38) -> 1 | E38: =E32/$D$32 -> 0.3372596548 | F38: =F32/$D$32 -> 0.1851013957 | G38: =G32/$D$32 -> 0.4525453903 | H38: =H32/$D$32 -> 0.02509355915 | I38: =I32/$D$32 -> 0
A39: Total Gen. Plant | D39: =D32 -> 994558
A40: Mining | C40: acct 399 from JAM | D40: ='GROSS PLANT'!D12 -> 290388.7555 | E40: =D29 -> 646 | F40: =SUM(D40+E40) -> 291034.7555
A41: Total | C41: P | D41: =SUM(D39:D40) -> 1284946.756
B44: Functional Allocators: | D44: Prod | E44: Trans | F44: DPW | G44: CUST | H44: DMISC
B45: P | C45: =SUM(D45:H45) -> 1 | D45: ='FORM 1'!$C$13 -> 1 | E45: ='FORM 1'!$D$13 -> 0 | F45: ='FORM 1'!$E$13 -> 0 | G45: ='FORM 1'!$F$13 -> 0 | H45: ='FORM 1'!$G$13 -> 0
B46: T | C46: 1 | D46: ='FORM 1'!$C$14 -> 0 | E46: ='FORM 1'!$D$14 -> 1 | F46: ='FORM 1'!$E$14 -> 0 | G46: ='FORM 1'!$F$14 -> 0 | H46: ='FORM 1'!$G$14 -> 0
B47: TD | C47: 1 | D47: ='FORM 1'!$C$18 -> 0 | E47: ='FORM 1'!$D$18 -> 0.4427396804 | F47: ='FORM 1'!$E$18 -> 0.5572603196 | G47: ='FORM 1'!$F$18 -> 0 | H47: ='FORM 1'!$G$18 -> 0
B48: CUST | C48: 1 | D48: 0 | E48: 0 | F48: 0 | G48: 1 | H48: 0
B49: DPW | C49: 1 | D49: 0 | E49: 0 | F49: 1 | G49: 0 | H49: 0
B50: PTD | C50: 1 | D50: ='FORM 1'!$C$16 -> 0.5035611251 | E50: ='FORM 1'!$D$16 -> 0.2197931888 | F50: ='FORM 1'!$E$16 -> 0.2766456861 | G50: ='FORM 1'!$F$16 -> 0 | H50: ='FORM 1'!$G$16 -> 0
B51: GP | C51: =SUM(D51:H51) -> 1 | D51: =+'GROSS PLANT'!E43 -> 0.505310413 | E51: =+'GROSS PLANT'!F43 -> 0.2129646467 | F51: =+'GROSS PLANT'!G43 -> 0.2751478325 | G51: =+'GROSS PLANT'!H43 -> 0.00657710777 | H51: =+'GROSS PLANT'!I43 -> 0

Sheet INTANGIBLE PLANT
A1: =+'TOTAL FUNCFAC'!A1 -> PacifiCorp
A2: =+'TOTAL FUNCFAC'!A2 -> 12 Months Ended June 2012
A3: Intangible Plant
A4: (In 000's)
A5: Alloc.
A6: Factor | B6: Funct. | C6: Amount | D6: Production | E6: Transmisssion | F6: DPW | G6: Customer | H6: DMSC
A7: CN | B7: CUST | C7: 121883.8904 | D7: =$C7*VLOOKUP(+$B7,$B$37:$H$44,3) -> 0 | E7: =$C7*VLOOKUP(+$B7,$B$37:$H$44,4) -> 0 | F7: =$C7*VLOOKUP(+$B7,$B$37:$H$44,5) -> 0 | G7: =$C7*VLOOKUP(+$B7,$B$37:$H$44,6) -> 121883.8904 | H7: =$C7*VLOOKUP(+$B7,$B$37:$H$44,7) -> 0
A8: SE | B8: P | C8: 3661.730495 | D8: 3661.730495 | E8: 0 | F8: 0 | G8: 0 | H8: 0
A9: SG | B9: P | C9: 0 | D9: 0 | E9: 0 | F9: 0 | G9: 0 | H9: 0
A10: SG | B10: T | C10: =26860+19167+1581 -> 47608 | D10: 0 | E10: 47608 | F10: 0 | G10: 0 | H10: 0
A11: SG | B11: P | C11: 232664.6302 | D11: 232664.6302 | E11: 0 | F11: 0 | G11: 0 | H11: 0
A12: SG | B12: P | C12: 48891.42546 | D12: 48891.42546 | E12: 0 | F12: 0 | G12: 0 | H12: 0
A13: SO | B13: CUST | C13: 7766.75139 | D13: 0 | E13: 0 | F13: 0 | G13: 7766.75139 | H13: 0
A14: SO | B14: DPW | C14: 23999.95692 | D14: 0 | E14: 0 | F14: 23999.95692 | G14: 0 | H14: 0
A15: SO | B15: P | C15: 29274.95172 | D15: 29274.95172 | E15: 0 | F15: 0 | G15: 0 | H15: 0
A16: SO | B16: PTD | C16: 303714.4817 | D16: 152938.8061 | E16: 66754.37442 | F16: 84021.30117 | G16: 0 | H16: 0
A17: SO | B17: TD | C17: 12687.8228 | D17: 0 | E17: 5617.402612 | F17: 7070.42019 | G17: 0 | H17: 0
A18: SO | B18: LABOR | C18: 0 | D18: 0 | E18: 0 | F18: 0 | G18: 0 | H18: 0
A19: SO | B19: DMSC | C19: 0 | D19: 0 | E19: 0 | F19: 0 | G19: 0 | H19: 0
A20: SITUS | B20: DPW | C20: 106.7272833 | D20: 0 | E20: 0 | F20: 106.7272833 | G20: 0 | H20: 0
A21: SITUS | B21: PTD | C21: 462.55361 | D21: 232.9240163 | E21: 101.6661329 | F21: 127.9634608 | G21: 0 | H21: 0
A22: SITUS | B22: T | C22: 530.80893 | D22: 0 | E22: 530.80893 | F22: 0 | G22: 0 | H22: 0
A23: SITUS | B23: TD | C23: 8135.86409 | D23: 0 | E23: 3602.069867 | F23: 4533.794223 | G23: 0 | H23: 0
A24: Total-DGP | C24: =SUMIF($A:$A,"SG-P",C:C) -> 0 | D24: 0 | E24: 0 | F24: 0 | G24: 0 | H24: 0
A25: Total-DGU | C25: =SUMIF($A:$A,"SG-U",C:C) -> 0 | D25: 0 | E25: 0 | F25: 0 | G25: 0 | H25: 0
A26: Total-SG | C26: =SUMIF($A:$A,"SG",C:C) -> 329164.0556 | D26: =SUMIF($A:$A,"SG",D:D) -> 281556.0556 | E26: 47608 | F26: 0 | G26: 0 | H26: 0
A27: Total-SITUS | C27: =SUMIF($A:$A,"SITUS",C:C) -> 9235.953913 | D27: =SUMIF($A:$A,"SITUS",D:D) -> 232.9240163 | E27: 4234.544929 | F27: 4768.484967 | G27: 0 | H27: 0
A28: Total-Intangible | C28: =SUM(C7:C23) -> 841389.5949 | D28: =SUM(D7:D23) -> 467664.4679 | E28: 124214.322 | F28: 119860.1632 | G28: 129650.6418 | H28: 0
A29: I-DGP FACTOR | C29: =SUM(D29:H29) ->  | D29: =D24/$C$24 ->  | E29: =E24/$C$24 ->  | F29: =F24/$C$24 ->  | G29: =G24/$C$24 ->  | H29: =H24/$C$24 -> 
A30: I-DGU FACTOR | C30: =SUM(D30:H30) ->  | D30: =D25/$C$25 ->  | E30: =E25/$C$25 ->  | F30: =F25/$C$25 ->  | G30: =G25/$C$25 ->  | H30: =H25/$C$25 -> 
A31: I-SG FACTOR | C31: =SUM(D31:H31) -> 1 | D31: =D26/$C$26 -> 0.855366954 | E31: =E26/$C$26 -> 0.144633046 | F31: =F26/$C$26 -> 0 | G31: =G26/$C$26 -> 0 | H31: =H26/$C$26 -> 0
A32: I-Situs FACTOR | C32: =SUM(D32:H32) -> 1 | D32: =D27/$C$27 -> 0.02521927009 | E32: =E27/$C$27 -> 0.4584848484 | F32: =F27/$C$27 -> 0.5162958815 | G32: =G27/$C$27 -> 0 | H32: =H27/$C$27 -> 0
A33: I FACTOR | C33: =SUM(D33:H33) -> 1 | D33: =D28/$C$28 -> 0.555823926 | E33: =E28/$C$28 -> 0.1476299715 | F33: =F28/$C$28 -> 0.1424550101 | G33: =G28/$C$28 -> 0.1540910924 | H33: =H28/$C$28 -> 0
B36: Functional Allocators: | D36: Prod | E36: Trans | F36: DPW | G36: CUST | H36: DMSC
B37: P | C37: =SUM(D37:H37) -> 1 | D37: ='FORM 1'!$C$13 -> 1 | E37: ='FORM 1'!$D$13 -> 0 | F37: ='FORM 1'!$E$13 -> 0 | G37: ='FORM 1'!$F$13 -> 0 | H37: ='FORM 1'!$G$13 -> 0
B38: T | C38: 1 | D38: ='FORM 1'!$C$14 -> 0 | E38: ='FORM 1'!$D$14 -> 1 | F38: ='FORM 1'!$E$14 -> 0 | G38: ='FORM 1'!$F$14 -> 0 | H38: ='FORM 1'!$G$14 -> 0
B39: TD | C39: 1 | D39: ='FORM 1'!$C$18 -> 0 | E39: ='FORM 1'!$D$18 -> 0.4427396804 | F39: ='FORM 1'!$E$18 -> 0.5572603196 | G39: ='FORM 1'!$F$18 -> 0 | H39: ='FORM 1'!$G$18 -> 0
B40: CUST | C40: 1 | D40: 0 | E40: 0 | F40: 0 | G40: 1 | H40: 0
B41: DPW | C41: 1 | D41: 0 | E41: 0 | F41: 1 | G41: 0 | H41: 0
B42: PTD | C42: 1 | D42: ='FORM 1'!$C$16 -> 0.5035611251 | E42: ='FORM 1'!$D$16 -> 0.2197931888 | F42: ='FORM 1'!$E$16 -> 0.2766456861 | G42: ='FORM 1'!$F$16 -> 0 | H42: ='FORM 1'!$G$16 -> 0
B43: DMSC | C43: 1 | D43: ='TOTAL FUNCFAC'!C18 -> 0 | E43: ='TOTAL FUNCFAC'!D18 -> 0 | F43: ='TOTAL FUNCFAC'!E18 -> 0 | G43: ='TOTAL FUNCFAC'!F18 -> 0 | H43: ='TOTAL FUNCFAC'!G18 -> 1
B44: LABOR | C44: =SUM(D44:H44) -> 1 | D44: ='SCH M'!F140 -> 0.4357726636 | E44: ='SCH M'!G140 -> 0.07202827842 | F44: ='SCH M'!H140 -> 0.3463882048 | G44: ='SCH M'!I140 -> 0.1458108532 | H44: ='SCH M'!J140 -> 0

Sheet SCH M
B1: =+'TOTAL FUNCFAC'!A1 -> PacifiCorp
B2: =+'TOTAL FUNCFAC'!A2 -> 12 Months Ended June 2012
B3: Schedule M
B4: Primary | C4: PITA
B5: Account | C5: Factor | D5: Function | E5: Amount | F5: Production | G5: Transmission | H5: Poles & Wires | I5: Customers | J5: Miscellaneous
B6: ADDITIONS
A7: =IF(C7="","",B7&"-"&C7) -> SCHMAP-SCHMDEXP | B7: SCHMAP | C7: SCHMDEXP | D7: LABOR | E7: 0 | F7: =VLOOKUP($D7,$D$135:$J$146,3,FALSE)*$E7 -> 0 | G7: =VLOOKUP($D7,$D$135:$J$146,4,FALSE)*$E7 -> 0 | H7: =VLOOKUP($D7,$D$135:$J$146,5,FALSE)*$E7 -> 0 | I7: =VLOOKUP($D7,$D$135:$J$146,6,FALSE)*$E7 -> 0 | J7: =VLOOKUP($D7,$D$135:$J$146,7,FALSE)*$E7 -> 0
A8: =IF(C8="","",B8&"-"&C8) -> SCHMAP-SE | B8: SCHMAP | C8: SE | D8: P | E8: 82.06 | F8: =VLOOKUP($D8,$D$135:$J$146,3,FALSE)*$E8 -> 82.06 | G8: =VLOOKUP($D8,$D$135:$J$146,4,FALSE)*$E8 -> 0 | H8: =VLOOKUP($D8,$D$135:$J$146,5,FALSE)*$E8 -> 0 | I8: =VLOOKUP($D8,$D$135:$J$146,6,FALSE)*$E8 -> 0 | J8: =VLOOKUP($D8,$D$135:$J$146,7,FALSE)*$E8 -> 0
A9: =IF(C9="","",B9&"-"&C9) -> SCHMAP-OTHER | B9: SCHMAP | C9: OTHER | D9: P | E9: -7.137 | F9: =VLOOKUP($D9,$D$135:$J$146,3,FALSE)*$E9 -> -7.137 | G9: =VLOOKUP($D9,$D$135:$J$146,4,FALSE)*$E9 -> 0 | H9: =VLOOKUP($D9,$D$135:$J$146,5,FALSE)*$E9 -> 0 | I9: =VLOOKUP($D9,$D$135:$J$146,6,FALSE)*$E9 -> 0 | J9: =VLOOKUP($D9,$D$135:$J$146,7,FALSE)*$E9 -> 0
A10: =IF(C10="","",B10&"-"&C10) -> SCHMAP-SO | B10: SCHMAP | C10: SO | D10: LABOR | E10: 4065.442 | F10: =VLOOKUP($D10,$D$135:$J$146,3,FALSE)*$E10 -> 1771.608489 | G10: =VLOOKUP($D10,$D$135:$J$146,4,FALSE)*$E10 -> 292.8267883 | H10: =VLOOKUP($D10,$D$135:$J$146,5,FALSE)*$E10 -> 1408.221156 | I10: =VLOOKUP($D10,$D$135:$J$146,6,FALSE)*$E10 -> 592.7855667 | J10: =VLOOKUP($D10,$D$135:$J$146,7,FALSE)*$E10 -> 0
A11: =IF(C11="","",B11&"-"&C11) -> SCHMAP-SO | B11: SCHMAP | C11: SO | D11: PTD | E11: 3463.525 | F11: =VLOOKUP($D11,$D$135:$J$146,3,FALSE)*$E11 -> 1744.096546 | G11: =VLOOKUP($D11,$D$135:$J$146,4,FALSE)*$E11 -> 761.2592043 | H11: =VLOOKUP($D11,$D$135:$J$146,5,FALSE)*$E11 -> 958.16925 | I11: =VLOOKUP($D11,$D$135:$J$146,6,FALSE)*$E11 -> 0 | J11: =VLOOKUP($D11,$D$135:$J$146,7,FALSE)*$E11 -> 0
A13: =IF(C13="","",B13&"-"&C13) ->  | B13: Total-SO | E13: =SUMIF($A:$A,"SCHMAP-SO",E:E) -> 7528.967 | F13: 3515.705035 | G13: 1054.085993 | H13: 2366.390406 | I13: 592.7855667 | J13: 0
A14: =IF(C14="","",B14&"-"&C14) ->  | B14: Total SCHMAP | E14: =SUMIF($B:$B,"SCHMAP",E:E) -> 7603.89 | F14: 3590.628035 | G14: 1054.085993 | H14: 2366.390406 | I14: 592.7855667 | J14: 0
A15: =IF(C15="","",B15&"-"&C15) ->  | B15: SCHMAP-SO | E15: =SUM(F15:J15) -> 1 | F15: =IF(ISERROR(F13/$E13)," ",(F13/$E13)) -> 0.4669571582 | G15: 0.140004066 | H15: 0.3143047919 | I15: 0.07873398392 | J15: 0
A16: =IF(C16="","",B16&"-"&C16) ->  | B16: SCHMAP FACTOR | E16: =SUM(F16:J16) -> 1 | F16: 0.4722093606 | G16: 0.1386245714 | H16: 0.3112078694 | I16: 0.07795819859 | J16: 0
A18: =IF(C18="","",B18&"-"&C18) -> SCHMAT-CIAC | B18: SCHMAT | C18: CIAC | D18: DPW | E18: 41147.935 | F18: =VLOOKUP($D18,$D$135:$J$146,3,FALSE)*$E18 -> 0 | G18: =VLOOKUP($D18,$D$135:$J$146,4,FALSE)*$E18 -> 0 | H18: =VLOOKUP($D18,$D$135:$J$146,5,FALSE)*$E18 -> 41147.935 | I18: =VLOOKUP($D18,$D$135:$J$146,6,FALSE)*$E18 -> 0 | J18: =VLOOKUP($D18,$D$135:$J$146,7,FALSE)*$E18 -> 0
A19: SCHMAT-BADDEBT | B19: SCHMAT | C19: BADDEBT | D19: CUST | E19: 4402.986004 | F19: 0 | G19: 0 | H19: 0 | I19: 4402.986004 | J19: 0
A20: SCHMAT-SCHMDEXP | B20: SCHMAT | C20: SCHMDEXP | D20: GP | E20: 626055.776 | F20: 316352.5027 | G20: 133327.7472 | H20: 172257.8898 | I20: 4117.636309 | J20: 0
A21: =IF(C21="","",B21&"-"&C21) -> SCHMAT-SE | B21: SCHMAT | C21: SE | D21: LABOR | E21: 0 | F21: 0 | G21: 0 | H21: 0 | I21: 0 | J21: 0
A22: SCHMAT-SE | B22: SCHMAT | C22: SE | D22: P | E22: 26031.778 | F22: 26031.778 | G22: 0 | H22: 0 | I22: 0 | J22: 0
A23: SCHMAT-SG | B23: SCHMAT | C23: SG | D23: DPW | E23: 0 | F23: 0 | G23: 0 | H23: 0 | I23: 0 | J23: 0
A24: =IF(C24="","",B24&"-"&C24) -> SCHMAT-SG | B24: SCHMAT | C24: SG | D24: P | E24: -1993.886 | F24: -1993.886 | G24: 0 | H24: 0 | I24: 0 | J24: 0
A25: SCHMAT-SG | B25: SCHMAT | C25: SG | D25: T | E25: 0 | F25: 0 | G25: 0 | H25: 0 | I25: 0 | J25: 0
A26: SCHMAT-SGCT | B26: SCHMAT | C26: SGCT | D26: P | E26: 1122.425 | F26: 1122.425 | G26: 0 | H26: 0 | I26: 0 | J26: 0
A27: SCHMAT-SNP | B27: SCHMAT | C27: SNP | D27: GP | E27: 1770 | F27: 894.399431 | G27: 376.9474247 | H27: 487.0116635 | I27: 11.64148075 | J27: 0
A28: SCHMAT-SNP | B28: SCHMAT | C28: SNP | D28: PTD | E28: 51429 | F28: 25897.6451 | G28: 11303.74391 | H28: 14227.61099 | I28: 0 | J28: 0
A29: SCHMAT-SNPD | B29: SCHMAT | C29: SNPD | D29: DPW | E29: 9557 | F29: 0 | G29: 0 | H29: 9557 | I29: 0 | J29: 0
A30: =IF(C30="","",B30&"-"&C30) -> SCHMAT-SO | B30: SCHMAT | C30: SO | D30: DMSC | E30: 0 | F30: 0 | G30: 0 | H30: 0 | I30: 0 | J30: 0
A31: =IF(C31="","",B31&"-"&C31) -> SCHMAT-SO | B31: SCHMAT | C31: SO | D31: LABOR | E31: 11567 | F31: 5040.5824 | G31: 833.1510965 | H31: 4006.672365 | I31: 1686.594139 | J31: 0
A32: SCHMAT-SO | B32: SCHMAT | C32: SO | D32: PTD | E32: 9655 | F32: 4861.882663 | G32: 2122.103238 | H32: 2671.014099 | I32: 0 | J32: 0
A33: =IF(C33="","",B33&"-"&C33) -> SCHMAT-OTHER | B33: SCHMAT | C33: OTHER | D33: DMSC | E33: 984.629 | F33: 0 | G33: 0 | H33: 0 | I33: 0 | J33: 984.629
A34: =IF(C34="","",B34&"-"&C34) -> SCHMAT-OTHER | B34: SCHMAT | C34: OTHER | D34: GP | E34: 0 | F34: 0 | G34: 0 | H34: 0 | I34: 0 | J34: 0
A35: SCHMAT-OTHER | B35: SCHMAT | C35: OTHER | D35: P | E35: 45481.64 | F35: 45481.64 | G35: 0 | H35: 0 | I35: 0 | J35: 0
A36: SCHMAT-OTHER | B36: SCHMAT | C36: OTHER | D36: PTD | E36: 19132.215 | F36: 9634.239711 | G36: 4205.130544 | H36: 5292.844746 | I36: 0 | J36: 0
A37: SCHMAT-TROJD | B37: SCHMAT | C37: TROJD | D37: P | E37: 13 | F37: 13 | G37: 0 | H37: 0 | I37: 0 | J37: 0
A38: SCHMAT-SITUS | B38: SCHMAT | C38: SITUS | D38: DMSC | E38: 491.616 | F38: 0 | G38: 0 | H38: 0 | I38: 0 | J38: 491.616
A39: SCHMAT-SITUS | B39: SCHMAT | C39: SITUS | D39: DPW | E39: 648.129 | F39: 0 | G39: 0 | H39: 648.129 | I39: 0 | J39: 0
A40: SCHMAT-SITUS | B40: SCHMAT | C40: SITUS | D40: ESD | E40: 100.17 | F40: 30.051 | G40: 10.017 | H40: 60.102 | I40: 0 | J40: 0
A41: SCHMAT-SITUS | B41: SCHMAT | C41: SITUS | D41: GP | E41: 4582.312 | F41: 2315.489969 | G41: 975.8704562 | H41: 1260.813215 | I41: 30.13835986 | J41: 0
A42: SCHMAT-SITUS | B42: SCHMAT | C42: SITUS | D42: LABOR | E42: 1235.038 | F42: 538.1957989 | G42: 88.95766092 | H42: 427.8025956 | I42: 180.0819445 | J42: 0
A43: SCHMAT-SITUS | B43: SCHMAT | C43: SITUS | D43: P | E43: 9398.315 | F43: 9398.315 | G43: 0 | H43: 0 | I43: 0 | J43: 0
A44: SCHMAT-SITUS | B44: SCHMAT | C44: SITUS | D44: PTD | E44: 3603.65 | F44: 1814.658048 | G44: 792.0577248 | H44: 996.9342268 | I44: 0 | J44: 0
A45: SCHMAT-SITUS | B45: SCHMAT | C45: SITUS | D45: T | E45: 433.153 | F45: 0 | G45: 433.153 | H45: 0 | I45: 0 | J45: 0
B46: Total-SE | E46: =SUMIF($A:$A,"SCHMAT-SE",E:E) -> 26031.778 | F46: 26031.778 | G46: 0 | H46: 0 | I46: 0 | J46: 0
A47: =IF(C47="","",B47&"-"&C47) ->  | B47: Total-SNP | E47: =SUMIF($A:$A,"SCHMAT-SNP",E:E) -> 53199 | F47: 26792.04453 | G47: 11680.69133 | H47: 14714.62265 | I47: 11.64148075 | J47: 0
B48: Total-SITUS | E48: =SUMIF($A:$A,"SCHMAT-SITUS",E:E) -> 20492.383 | F48: 14096.70982 | G48: 2300.055842 | H48: 3393.781037 | I48: 210.2203044 | J48: 491.616
B49: Total-SO | E49: =SUMIF($A:$A,"SCHMAT-SO",E:E) -> 21222 | F49: 9902.465062 | G49: 2955.254334 | H49: 6677.686464 | I49: 1686.594139 | J49: 0
B50: Total-SCHMAT | E50: =SUMIF($B:$B,"SCHMAT",E:E) -> 866848.881 | F50: 447432.9189 | G50: 154468.8792 | H50: 253041.7597 | I50: 10429.07824 | J50: 1476.245
B51: SCHMAT-SE | E51: =SUM(F51:J51) -> 1 | F51: =IF(ISERROR(F46/$E46)," ",(F46/$E46)) -> 1 | G51: 0 | H51: 0 | I51: 0 | J51: 0
B52: SCHMAT-SNP | E52: =SUM(F52:J52) -> 1 | F52: 0.5036193262 | G52: 0.2195659943 | H52: 0.2765958506 | I52: 0.0002188289395 | J52: 0
B53: SCHMAT-SITUS | E53: =SUM(F53:J53) -> 1 | F53: 0.6878999781 | G53: 0.1122395498 | H53: 0.1656118294 | I53: 0.01025846064 | J53: 0.02399018211
B54: SCHMAT-SO | E54: =SUM(F54:J54) -> 1 | F54: 0.4666131874 | G54: 0.1392542802 | H54: 0.314658678 | I54: 0.07947385445 | J54: 0
B55: SCHMAT FACTOR | E55: =SUM(F55:J55) -> 1 | F55: 0.5161602312 | G55: 0.178195857 | H55: 0.2919098879 | I55: 0.01203102232 | J55: 0.001703001564
A57: =IF(C57="","",B57&"-"&C57) -> SCHMAF-DGP | B57: SCHMAF | C57: DGP | D57: P | E57: 0 | F57: =VLOOKUP($D57,$D$135:$J$146,3,FALSE)*$E57 -> 0 | G57: =VLOOKUP($D57,$D$135:$J$146,4,FALSE)*$E57 -> 0 | H57: =VLOOKUP($D57,$D$135:$J$146,5,FALSE)*$E57 -> 0 | I57: =VLOOKUP($D57,$D$135:$J$146,6,FALSE)*$E57 -> 0 | J57: =VLOOKUP($D57,$D$135:$J$146,7,FALSE)*$E57 -> 0
A58: =IF(C58="","",B58&"-"&C58) -> SCHMAF-TROJP | B58: SCHMAF | C58: TROJP | D58: P | E58: 0 | F58: =VLOOKUP($D58,$D$135:$J$146,3,FALSE)*$E58 -> 0 | G58: =VLOOKUP($D58,$D$135:$J$146,4,FALSE)*$E58 -> 0 | H58: =VLOOKUP($D58,$D$135:$J$146,5,FALSE)*$E58 -> 0 | I58: =VLOOKUP($D58,$D$135:$J$146,6,FALSE)*$E58 -> 0 | J58: =VLOOKUP($D58,$D$135:$J$146,7,FALSE)*$E58 -> 0
A59: =IF(C59="","",B59&"-"&C59) ->  | B59: Total-SCHMAF | E59: =SUMIF($A:$A,"SCHMAF",E:E) -> 0 | F59: 0 | G59: 0 | H59: 0 | I59: 0 | J59: 0
B60: SCHMAF FACTOR | E60: =SUM(F60:J60) -> 0 | F60: =IF(ISERROR(F59/$E59)," ",(F59/$E59)) ->  | G60: =IF(ISERROR(G59/$E59)," ",(G59/$E59)) ->  | H60: =IF(ISERROR(H59/$E59)," ",(H59/$E59)) ->  | I60: =IF(ISERROR(I59/$E59)," ",(I59/$E59)) ->  | J60: =IF(ISERROR(J59/$E59)," ",(J59/$E59)) -> 
B62: Total-SCHMA | E62: =SUM(E59,E50,E14) -> 874452.771 | F62: 451023.5469 | G62: 155522.9652 | H62: 255408.1501 | I62: 11021.8638 | J62: 1476.245
B63: SCHMA FACTOR | E63: =SUM(F63:J63) -> 1 | F63: =IF(ISERROR(F62/$E62)," ",(F62/$E62)) -> 0.5157780521 | G63: =IF(ISERROR(G62/$E62)," ",(G62/$E62)) -> 0.177851761 | H63: =IF(ISERROR(H62/$E62)," ",(H62/$E62)) -> 0.2920776954 | I63: =IF(ISERROR(I62/$E62)," ",(I62/$E62)) -> 0.01260429856 | J63: =IF(ISERROR(J62/$E62)," ",(J62/$E62)) -> 0.001688192946
B65: DEDUCTIONS
A66: SCHMDP-SCHMDEXP | B66: SCHMDP | C66: SCHMDEXP | D66: LABOR | E66: 257.021 | F66: =VLOOKUP($D66,$D$135:$J$146,3,FALSE)*$E66 -> 112.0027258 | G66: =VLOOKUP($D66,$D$135:$J$146,4,FALSE)*$E66 -> 18.51278015 | H66: =VLOOKUP($D66,$D$135:$J$146,5,FALSE)*$E66 -> 89.02904278 | I66: =VLOOKUP($D66,$D$135:$J$146,6,FALSE)*$E66 -> 37.4764513 | J66: =VLOOKUP($D66,$D$135:$J$146,7,FALSE)*$E66 -> 0
A67: SCHMDP-SE | B67: SCHMDP | C67: SE | D67: P | E67: 474.854 | F67: 474.854 | G67: 0 | H67: 0 | I67: 0 | J67: 0
A68: SCHMDP-SG | B68: SCHMDP | C68: SG | D68: P | E68: 0 | F68: 0 | G68: 0 | H68: 0 | I68: 0 | J68: 0
A69: SCHMDP-SNP | B69: SCHMDP | C69: SNP | D69: PTD | E69: 382.696 | F69: 192.7108283 | G69: 84.11397418 | H69: 105.8711975 | I69: 0 | J69: 0
A70: SCHMDP-SO | B70: SCHMDP | C70: SO | D70: LABOR | E70: 11495.969 | F70: 5009.629032 | G70: 828.0348558 | H70: 3982.068064 | I70: 1676.237048 | J70: 0
A71: SCHMDP-SITUS | B71: SCHMDP | C71: SITUS | D71: PTD | E71: 0 | F71: 0 | G71: 0 | H71: 0 | I71: 0 | J71: 0
B72: Total-SO | E72: =SUMIF($A:$A,"SCHMDP-SO",E:E) -> 11495.969 | F72: 5009.629032 | G72: 828.0348558 | H72: 3982.068064 | I72: 1676.237048 | J72: 0
B73: Total-SCHMDP | E73: =SUMIF($B:$B,"SCHMDP",E:E) -> 12610.54 | F73: 5789.196586 | G73: 930.6616102 | H73: 4176.968304 | I73: 1713.7135 | J73: 0
B74: SCHMDP-SO | E74: =SUM(F74:J74) -> 1 | F74: =IF(ISERROR(F72/$E72)," ",(F72/$E72)) -> 0.4357726636 | G74: 0.07202827842 | H74: 0.3463882048 | I74: 0.1458108532 | J74: 0
B75: SCHMDP FACTOR | E75: =SUM(F75:J75) -> 1 | F75: 0.4590760258 | G75: 0.07380029802 | H75: 0.3312283458 | I75: 0.1358953304 | J75: 0
A77: SCHMDT-BADDEBT | B77: SCHMDT | C77: BADDEBT | D77: CUST | E77: 0 | F77: =VLOOKUP($D77,$D$135:$J$146,3,FALSE)*$E77 -> 0 | G77: =VLOOKUP($D77,$D$135:$J$146,4,FALSE)*$E77 -> 0 | H77: =VLOOKUP($D77,$D$135:$J$146,5,FALSE)*$E77 -> 0 | I77: =VLOOKUP($D77,$D$135:$J$146,6,FALSE)*$E77 -> 0 | J77: =VLOOKUP($D77,$D$135:$J$146,7,FALSE)*$E77 -> 0
A78: SCHMDT-CN | B78: SCHMDT | C78: CN | D78: CUST | E78: 48.156 | F78: 0 | G78: 0 | H78: 0 | I78: 48.156 | J78: 0
A79: SCHMDT-GPS | B79: SCHMDT | C79: GPS | D79: GP | E79: 0 | F79: 0 | G79: 0 | H79: 0 | I79: 0 | J79: 0
A80: SCHMDT-GPS | B80: SCHMDT | C80: GPS | D80: P | E80: 0 | F80: 0 | G80: 0 | H80: 0 | I80: 0 | J80: 0
A81: SCHMDT-GPS | B81: SCHMDT | C81: GPS | D81: PTD | E81: 105220.837 | F81: 52985.12306 | G81: 23126.82329 | H81: 29108.89065 | I81: 0 | J81: 0
A82: SCHMDT-SG | B82: SCHMDT | C82: SG | D82: P | E82: 200371.174 | F82: 200371.174 | G82: 0 | H82: 0 | I82: 0 | J82: 0
A83: =IF(C83="","",B83&"-"&C83) -> SCHMDT-SG | B83: SCHMDT | C83: SG | D83: GP | E83: 0 | F83: 0 | G83: 0 | H83: 0 | I83: 0 | J83: 0
A84: SCHMDT-SE | B84: SCHMDT | C84: SE | D84: P | E84: 33039.412 | F84: 33039.412 | G84: 0 | H84: 0 | I84: 0 | J84: 0
A85: SCHMDT-SNP | B85: SCHMDT | C85: SNP | D85: PTD | E85: 78813.067 | F85: 39687.19669 | G85: 17322.57532 | H85: 21803.295 | I85: 0 | J85: 0
A86: SCHMDT-SO | B86: SCHMDT | C86: SO | D86: ESD | E86: 4556.435 | F86: 1366.9305 | G86: 455.6435 | H86: 2733.861 | I86: 0 | J86: 0
A87: SCHMDT-SO | B87: SCHMDT | C87: SO | D87: GP | E87: 6552.084 | F87: 3310.836272 | G87: 1395.362254 | H87: 1802.791711 | I87: 43.09376258 | J87: 0
A88: SCHMDT-SO | B88: SCHMDT | C88: SO | D88: LABOR | E88: 3624.386 | F88: 1579.408341 | G88: 261.0582839 | H88: 1255.44456 | I88: 528.474815 | J88: 0
A89: SCHMDT-SO | B89: SCHMDT | C89: SO | D89: PTD | E89: 4361.096 | F89: 2196.078408 | G89: 958.5391965 | H89: 1206.478395 | I89: 0 | J89: 0
A90: SCHMDT-OTHER | B90: SCHMDT | C90: OTHER | D90: CUST | E90: 0 | F90: 0 | G90: 0 | H90: 0 | I90: 0 | J90: 0
A91: =IF(C91="","",B91&"-"&C91) -> SCHMDT-OTHER | B91: SCHMDT | C91: OTHER | D91: DMSC | E91: 46653 | F91: 0 | G91: 0 | H91: 0 | I91: 0 | J91: 46653
A92: SCHMDT-OTHER | B92: SCHMDT | C92: OTHER | D92: DPW | E92: 33.14 | F92: 0 | G92: 0 | H92: 33.14 | I92: 0 | J92: 0
A93: SCHMDT-OTHER | B93: SCHMDT | C93: OTHER | D93: LABOR | E93: 5651.545 | F93: 2462.788818 | G93: 407.0710568 | H93: 1957.628527 | I93: 824.0565984 | J93: 0
A94: SCHMDT-OTHER | B94: SCHMDT | C94: OTHER | D94: P | E94: 106235.027 | F94: 106235.027 | G94: 0 | H94: 0 | I94: 0 | J94: 0
A95: SCHMDT-OTHER | B95: SCHMDT | C95: OTHER | D95: PT | E95: 5812 | F95: 4046.007887 | G95: 1765.992113 | H95: 0 | I95: 0 | J95: 0
A96: =IF(C96="","",B96&"-"&C96) -> SCHMDT-OTHER | B96: SCHMDT | C96: OTHER | D96: GP | E96: 1163 | F96: 587.6760103 | G96: 247.6778841 | H96: 319.9969292 | I96: 7.649176336 | J96: 0
A97: SCHMDT-TAXDEPR | B97: SCHMDT | C97: TAXDEPR | D97: TAXDEPR | E97: 1309115.012 | F97: 752791.6335 | G97: 233692.6467 | H97: 315989.4132 | I97: 6641.318574 | J97: 0
A98: SCHMDT-SITUS | B98: SCHMDT | C98: SITUS | D98: DMSC | E98: 606 | F98: 0 | G98: 0 | H98: 0 | I98: 0 | J98: 606
A99: =IF(C99="","",B99&"-"&C99) -> SCHMDT-SITUS | B99: SCHMDT | C99: SITUS | D99: DPW | E99: 3.755 | F99: 0 | G99: 0 | H99: 3.755 | I99: 0 | J99: 0
A100: SCHMDT-SITUS | B100: SCHMDT | C100: SITUS | D100: GP | E100: 0 | F100: 0 | G100: 0 | H100: 0 | I100: 0 | J100: 0
A101: SCHMDT-SITUS | B101: SCHMDT | C101: SITUS | D101: LABOR | E101: 1663.914 | F101: 725.0882358 | G101: 119.8488609 | H101: 576.3601834 | I101: 242.61672 | J101: 0
A102: SCHMDT-SITUS | B102: SCHMDT | C102: SITUS | D102: P | E102: 1224 | F102: 1224 | G102: 0 | H102: 0 | I102: 0 | J102: 0
A103: SCHMDT-SITUS | B103: SCHMDT | C103: SITUS | D103: GP | E103: 950 | F103: 480.0448924 | G103: 202.3164144 | H103: 261.3904409 | I103: 6.248252381 | J103: 0
B104: Total-GPS | E104: =SUMIF($A:$A,"SCHMDT-GPS",E:E) -> 105220.837 | F104: 52985.12306 | G104: 23126.82329 | H104: 29108.89065 | I104: 0 | J104: 0
A105: =IF(C105="","",B105&"-"&C105) ->  | B105: Total-CN | E105: =SUMIF($A:$A,"SCHMDT-CN",E:E) -> 48.156 | F105: 0 | G105: 0 | H105: 0 | I105: 48.156 | J105: 0
B106: Total-SG | E106: =SUMIF($A:$A,"SCHMDT-SG",E:E) -> 200371.174 | F106: 200371.174 | G106: 0 | H106: 0 | I106: 0 | J106: 0
A107: =IF(C107="","",B107&"-"&C107) ->  | B107: Total-SE | E107: =SUMIF($A:$A,"SCHMDT-SE",E:E) -> 33039.412 | F107: 33039.412 | G107: 0 | H107: 0 | I107: 0 | J107: 0
B108: Total-SNP | E108: =SUMIF($A:$A,"SCHMDT-SNP",E:E) -> 78813.067 | F108: 39687.19669 | G108: 17322.57532 | H108: 21803.295 | I108: 0 | J108: 0
B109: Total SO | E109: =SUMIF($A:$A,"SCHMDT-SO",E:E) -> 19094.001 | F109: 8453.253522 | G109: 3070.603235 | H109: 6998.575666 | I109: 571.5685776 | J109: 0
A110: =IF(C110="","",B110&"-"&C110) ->  | B110: Total OTHER | E110: =SUMIF($A:$A,"SCHMDT-OTHER",E:E) -> 165547.712 | F110: 113331.4997 | G110: 2420.741054 | H110: 2310.765456 | I110: 831.7057748 | J110: 46653
A111: =IF(C111="","",B111&"-"&C111) ->  | B111: Total TAXDEPR | E111: =SUMIF($A:$A,"SCHMDT-TAXDEPR",E:E) -> 1309115.012 | F111: 752791.6335 | G111: 233692.6467 | H111: 315989.4132 | I111: 6641.318574 | J111: 0
B112: Total-SITUS | E112: =SUMIF($A:$A,"SCHMDT-SITUS",E:E)+SUMIF($A:$A,"SCHMDT-CN",E:E) -> 4495.825 | F112: 2429.133128 | G112: 322.1652752 | H112: 841.5056242 | I112: 297.0209724 | J112: 606
B113: Total SCHMDT | E113: =SUMIF($B:$B,"SCHMDT",E:E) -> 1915697.04 | F113: 1203088.426 | G113: 279955.5549 | H113: 377052.4456 | I113: 8341.613898 | J113: 47259
B114: SCHMDT-GPS | E114: =SUM(F114:J114) -> 1 | F114: =IF(ISERROR(F104/$E104)," ",(F104/$E104)) -> 0.5035611251 | G114: 0.2197931888 | H114: 0.2766456861 | I114: 0 | J114: 0
A115: =IF(C115="","",B115&"-"&C115) ->  | B115: SCHMDT-CN | E115: =SUM(F115:J115) -> 1 | F115: 0 | G115: 0 | H115: 0 | I115: 1 | J115: 0
B116: SCHMDT-SG | E116: =SUM(F116:J116) -> 1 | F116: 1 | G116: 0 | H116: 0 | I116: 0 | J116: 0
A117: =IF(C117="","",B117&"-"&C117) ->  | B117: SCHMDT-SE | E117: =SUM(F117:J117) -> 1 | F117: 1 | G117: 0 | H117: 0 | I117: 0 | J117: 0
B118: SCHMDT-SNP | E118: 1 | F118: 0.5035611251 | G118: 0.2197931888 | H118: 0.2766456861 | I118: 0 | J118: 0
B119: SCHMDT-SO | E119: 1 | F119: 0.4427177689 | G119: 0.1608150767 | H119: 0.3665326961 | I119: 0.02993445835 | J119: 0
A120: =IF(C120="","",B120&"-"&C120) ->  | B120: SCHMDT-OTHER | E120: =SUM(F120:J120) -> 1 | F120: 0.6845851166 | G120: 0.01462261861 | H120: 0.013958305 | I120: 0.005023964177 | J120: 0.2818099957
A121: =IF(C121="","",B121&"-"&C121) ->  | B121: SCHMDT-TAXDEPR | E121: =SUM(F121:J121) -> 1 | F121: 0.5750385769 | G121: 0.1785119295 | H121: 0.2413763575 | I121: 0.00507313606 | J121: 0
A122: =IF(C122="","",B122&"-"&C122) ->  | B122: SCHMDT-SITUS | E122: 1 | F122: =IF(ISERROR(F112/$E112)," ",(F112/$E112)) -> 0.5403086482 | G122: 0.0716587668 | H122: 0.1871749065 | I122: 0.06606595506 | J122: 0.1347917234
B123: SCHMDT FACTOR | E123: 1 | F123: 0.6280160174 | G123: 0.1461376977 | H123: 0.1968225861 | I123: 0.004354349213 | J123: 0.0246693496
A125: SCHMDF-DGP | B125: SCHMDF | C125: DGP | D125: P | E125: 0 | F125: =VLOOKUP($D125,$D$135:$J$146,3,FALSE)*$E125 -> 0 | G125: =VLOOKUP($D125,$D$135:$J$146,4,FALSE)*$E125 -> 0 | H125: =VLOOKUP($D125,$D$135:$J$146,5,FALSE)*$E125 -> 0 | I125: =VLOOKUP($D125,$D$135:$J$146,6,FALSE)*$E125 -> 0 | J125: =VLOOKUP($D125,$D$135:$J$146,7,FALSE)*$E125 -> 0
B126: Total-SCHMDF | E126: =SUMIF($A:$A,"SCHMDF",E:E) -> 0 | F126: 0 | G126: 0 | H126: 0 | I126: 0 | J126: 0
B127: SCHMDF FACTOR | E127: =SUM(F127:J127) -> 0 | F127: =IF(ISERROR(F126/$E126)," ",(F126/$E126)) ->  | G127: =IF(ISERROR(G126/$E126)," ",(G126/$E126)) ->  | H127: =IF(ISERROR(H126/$E126)," ",(H126/$E126)) ->  | I127: =IF(ISERROR(I126/$E126)," ",(I126/$E126)) ->  | J127: =IF(ISERROR(J126/$E126)," ",(J126/$E126)) -> 
B129: Total-SCHMD | E129: =SUM(E126,E113,E73) -> 1928307.58 | F129: 1208877.622 | G129: 280886.2165 | H129: 381229.4139 | I129: 10055.3274 | J129: 47259
B130: SCHMD FACTOR | E130: =SUM(F130:J130) -> 1 | F130: =IF(ISERROR(F129/$E129)," ",(F129/$E129)) -> 0.6269112017 | G130: =IF(ISERROR(G129/$E129)," ",(G129/$E129)) -> 0.1456646333 | H130: =IF(ISERROR(H129/$E129)," ",(H129/$E129)) -> 0.1977015585 | I130: =IF(ISERROR(I129/$E129)," ",(I129/$E129)) -> 0.005214586875 | J130: =IF(ISERROR(J129/$E129)," ",(J129/$E129)) -> 0.02450801962
B132: Net SCHM
E134: Total | F134: Production | G134: Transmission | H134: Poles & Wires | I134: Customers | J134: Miscellaneous
D135: DMSC | E135: =SUM(F135:J135) -> 1 | F135: 0 | G135: 0 | H135: 0 | I135: 0 | J135: 1
D136: DPW | E136: =SUM(F136:J136) -> 1 | F136: 0 | G136: 0 | H136: 1 | I136: 0 | J136: 0
D137: CUST | E137: 1 | F137: 0 | G137: 0 | H137: 0 | I137: 1 | J137: 0
D138: ESD | E138: 1 | F138: 0.3 | G138: 0.1 | H138: 0.6 | I138: 0 | J138: 0
D139: GP | E139: 1 | F139: ='GROSS PLANT'!E43 -> 0.505310413 | G139: ='GROSS PLANT'!F43 -> 0.2129646467 | H139: ='GROSS PLANT'!G43 -> 0.2751478325 | I139: ='GROSS PLANT'!H43 -> 0.00657710777 | J139: ='GROSS PLANT'!I43 -> 0
D140: LABOR | E140: 1 | F140: ='FORM 1'!C25 -> 0.4357726636 | G140: ='FORM 1'!D25 -> 0.07202827842 | H140: ='FORM 1'!E25 -> 0.3463882048 | I140: ='FORM 1'!F25 -> 0.1458108532 | J140: ='FORM 1'!G25 -> 0
D141: P | E141: 1 | F141: ='FORM 1'!C13 -> 1 | G141: ='FORM 1'!D13 -> 0 | H141: ='FORM 1'!E13 -> 0 | I141: ='FORM 1'!F13 -> 0 | J141: ='FORM 1'!G13 -> 0
D142: PT | E142: =SUM(F142:J142) -> 1 | F142: =+'FORM 1'!C17 -> 0.696147262 | G142: =+'FORM 1'!D17 -> 0.303852738 | H142: 0 | I142: 0 | J142: 0
D143: PTD | E143: 1 | F143: ='FORM 1'!C16 -> 0.5035611251 | G143: ='FORM 1'!D16 -> 0.2197931888 | H143: ='FORM 1'!E16 -> 0.2766456861 | I143: ='FORM 1'!F16 -> 0 | J143: ='FORM 1'!G16 -> 0
D144: T | E144: 1 | F144: ='FORM 1'!C14 -> 0 | G144: ='FORM 1'!D14 -> 1 | H144: ='FORM 1'!E14 -> 0 | I144: ='FORM 1'!F14 -> 0 | J144: ='FORM 1'!G14 -> 0
D145: TAXDEPR | E145: 1 | F145: ='TAX DEPR'!C24 -> 0.5750385769 | G145: ='TAX DEPR'!D24 -> 0.1785119295 | H145: ='TAX DEPR'!E24 -> 0.2413763575 | I145: ='TAX DEPR'!F24 -> 0.00507313606 | J145: ='TAX DEPR'!G24 -> 0
D146: TD | E146: 1 | F146: ='FORM 1'!C18 -> 0 | G146: ='FORM 1'!D18 -> 0.4427396804 | H146: ='FORM 1'!E18 -> 0.5572603196 | I146: ='FORM 1'!F18 -> 0 | J146: ='FORM 1'!G18 -> 0

Sheet DDS
B1: =+'TOTAL FUNCFAC'!A1 -> PacifiCorp
B2: =+'TOTAL FUNCFAC'!A2 -> 12 Months Ended June 2012
B3: Reg Assets / Deferred Debits
B5: Pri-Acct | C5: Factor | D5: Function | E5: Total | F5: Production | G5: Transmission | H5: DPW | I5: CUST | J5: DMSC
A6: ="RA"&"-"&C6 -> RA-SE | B6: 182M | C6: SE | D6: P | E6: 10608.20882 | F6: =VLOOKUP($D6,$D$65:$J$77,3,FALSE)*$E6 -> 10608.20882 | G6: =VLOOKUP($D6,$D$65:$J$77,4,FALSE)*$E6 -> 0 | H6: =VLOOKUP($D6,$D$65:$J$77,5,FALSE)*$E6 -> 0 | I6: =VLOOKUP($D6,$D$65:$J$77,6,FALSE)*$E6 -> 0 | J6: =VLOOKUP($D6,$D$65:$J$77,7,FALSE)*$E6 -> 0
A7: RA-SG | B7: 182M | C7: SG | D7: P | E7: 0 | F7: 0 | G7: 0 | H7: 0 | I7: 0 | J7: 0
A8: RA-SGCT | B8: 182M | C8: SGCT | D8: P | E8: 6266.87314 | F8: 6266.87314 | G8: 0 | H8: 0 | I8: 0 | J8: 0
A9: RA-SG-P | B9: 182M | C9: SG-P | D9: P | E9: 0 | F9: 0 | G9: 0 | H9: 0 | I9: 0 | J9: 0
A10: RA-SO | B10: 182M | C10: SO | D10: DMSC | E10: 6094.711837 | F10: 0 | G10: 0 | H10: 0 | I10: 0 | J10: 6094.711837
A11: RA-SO | B11: 182M | C11: SO | D11: DPW | E11: 0 | F11: 0 | G11: 0 | H11: 0 | I11: 0 | J11: 0
A12: RA-SO | B12: 182M | C12: SO | D12: ESD | E12: 3403.186728 | F12: 1020.956018 | G12: 340.3186728 | H12: 2041.912037 | I12: 0 | J12: 0
A13: RA-SO | B13: 182M | C13: SO | D13: P | E13: 0 | F13: 0 | G13: 0 | H13: 0 | I13: 0 | J13: 0
A14: RA-SO | B14: 182M | C14: SO | D14: TD | E14: 0 | F14: 0 | G14: 0 | H14: 0 | I14: 0 | J14: 0
A15: ="RA"&"-"&C15 -> RA-OTHER | B15: 182M | C15: OTHER | D15: CUST | E15: -5035.715069 | F15: 0 | G15: 0 | H15: 0 | I15: -5035.715069 | J15: 0
A16: ="RA"&"-"&C16 -> RA-OTHER | B16: 182M | C16: OTHER | D16: DMSC | E16: 10161.56252 | F16: 0 | G16: 0 | H16: 0 | I16: 0 | J16: 10161.56252
A17: RA-OTHER | B17: 182M | C17: OTHER | D17: LABOR | E17: 12370.30561 | F17: 5390.641027 | G17: 891.0118169 | H17: 4284.927954 | I17: 1803.724816 | J17: 0
A18: RA-OTHER | B18: 182M | C18: OTHER | D18: P | E18: 122434 | F18: 122434 | G18: 0 | H18: 0 | I18: 0 | J18: 0
A19: RA-OTHER | B19: 182M | C19: OTHER | D19: PT | E19: 435.0674054 | F19: 302.8709831 | G19: 132.1964223 | H19: 0 | I19: 0 | J19: 0
A20: RA-OTHER | B20: 182M | C20: OTHER | D20: PTD | E20: 8545.514878 | F20: 4303.189086 | G20: 1878.245965 | H20: 2364.079827 | I20: 0 | J20: 0
A21: RA-OTHER | B21: 182M | C21: OTHER | D21: TD | E21: 186.3754346 | F21: 0 | G21: 82.51580034 | H21: 103.8596342 | I21: 0 | J21: 0
A22: RA-TROJD | B22: 182M | C22: TROJD | D22: P | E22: 0 | F22: 0 | G22: 0 | H22: 0 | I22: 0 | J22: 0
A23: RA-TROJP | B23: 182M | C23: TROJP | D23: P | E23: 0 | F23: 0 | G23: 0 | H23: 0 | I23: 0 | J23: 0
A24: RA-SITUS | B24: 182M | C24: SITUS | D24: DMSC | E24: -735.8509175 | F24: 0 | G24: 0 | H24: 0 | I24: 0 | J24: -735.8509175
A25: RA-SITUS | B25: 182M | C25: SITUS | D25: LABOR | E25: 88.70395417 | F25: 38.65475838 | G25: 6.389193108 | H25: 30.72600344 | I25: 12.93399924 | J25: 0
A26: RA-SITUS | B26: 182M | C26: SITUS | D26: P | E26: 15720.68591 | F26: 15720.68591 | G26: 0 | H26: 0 | I26: 0 | J26: 0
A27: RA-SITUS | B27: 182M | C27: SITUS | D27: PTD | E27: 899.3658562 | F27: 452.8856824 | G27: 197.6744894 | H27: 248.8056844 | I27: 0 | J27: 0
A28: RA-SITUS | B28: 182M | C28: SITUS | D28: CUST | E28: 2976.951771 | F28: 0 | G28: 0 | H28: 0 | I28: 2976.951771 | J28: 0
B29: Total-SO | E29: =SUMIF($A:$A,"RA-SO",E:E) -> 9497.898565 | F29: 1020.956018 | G29: 340.3186728 | H29: 2041.912037 | I29: 0 | J29: 6094.711837
B30: Total-OTHER | E30: =SUMIF($A:$A,"RA-OTHER",E:E) -> 149097.1108 | F30: 132430.7011 | G30: 2983.970005 | H30: 6752.867415 | I30: -3231.990253 | J30: 10161.56252
B31: Total SITUS | E31: =SUMIF($A:$A,"RA-SITUS",E:E) -> 18949.85657 | F31: 16212.22635 | G31: 204.0636826 | H31: 279.5316878 | I31: 2989.88577 | J31: -735.8509175
B32: Total RA | E32: =SUMIF($B:$B,"182M",E:E) -> 194419.9479 | F32: 166538.9654 | G32: 3528.35236 | H32: 9074.31114 | I32: -242.1044831 | J32: 15520.42343
B33: DDSO2 FACTOR | E33: =SUM(F33:J33) -> 1 | F33: =F29/$E29 -> 0.1074928324 | G33: =G29/$E29 -> 0.03583094413 | H33: =H29/$E29 -> 0.2149856648 | I33: =I29/$E29 -> 0 | J33: =J29/$E29 -> 0.6416905587
B34: DDS2 FACTOR | E34: =SUM(F34:J34) -> 1 | F34: =F31/$E31 -> 0.8555329317 | G34: =G31/$E31 -> 0.01076861357 | H34: =H31/$E31 -> 0.0147511242 | I34: =I31/$E31 -> 0.1577788074 | J34: =J31/$E31 -> -0.03883147689
A36: ="DD"&"-"&C36 -> DD-SE | B36: 186M | C36: SE | D36: P | E36: 13380.82957 | F36: =VLOOKUP($D36,$D$65:$J$77,3,FALSE)*$E36 -> 13380.82957 | G36: =VLOOKUP($D36,$D$65:$J$77,4,FALSE)*$E36 -> 0 | H36: =VLOOKUP($D36,$D$65:$J$77,5,FALSE)*$E36 -> 0 | I36: =VLOOKUP($D36,$D$65:$J$77,6,FALSE)*$E36 -> 0 | J36: =VLOOKUP($D36,$D$65:$J$77,7,FALSE)*$E36 -> 0
A37: DD-SG | B37: 186M | C37: SG | D37: P | E37: =24044+11600+2754 -> 38398 | F37: 38398 | G37: 0 | H37: 0 | I37: 0 | J37: 0
A38: DD-SG | B38: 186M | C38: SG | D38: T | E38: =16990+25 -> 17015 | F38: 0 | G38: 17015 | H38: 0 | I38: 0 | J38: 0
A39: DD-SO | B39: 186M | C39: SO | D39: DMSC | E39: 15.02140875 | F39: 0 | G39: 0 | H39: 0 | I39: 0 | J39: 15.02140875
A40: DD-SITUS | B40: 186M | C40: SITUS | D40: T | E40: 0 | F40: 0 | G40: 0 | H40: 0 | I40: 0 | J40: 0
A41: DD-SITUS | B41: 186M | C41: SITUS | D41: LABOR | E41: 0 | F41: 0 | G41: 0 | H41: 0 | I41: 0 | J41: 0
B42: Total SITUS | E42: =SUMIF($A:$A,"DD-SITUS",E:E) -> 0 | F42: 0 | G42: 0 | H42: 0 | I42: 0 | J42: 0
B43: Total SG | E43: =SUMIF($A:$A,"DD-SG",E:E) -> 55413 | F43: 38398 | G43: 17015 | H43: 0 | I43: 0 | J43: 0
B44: Total-SO | E44: =SUMIF($A:$A,"DD-SO",E:E) -> 15.02140875 | F44: 0 | G44: 0 | H44: 0 | I44: 0 | J44: 15.02140875
B45: Total-DD | E45: =SUMIF($B:$B,"186M",E:E) -> 68808.85098 | F45: 51778.82957 | G45: 17015 | H45: 0 | I45: 0 | J45: 15.02140875
B46: DDS6 FACTOR | E46: =SUM(F46:J46) -> 0 | F46: =IFERROR(F42/$E42,0) -> 0 | G46: =IFERROR(G42/$E42,0) -> 0 | H46: 0 | I46: 0 | J46: 0
B47: DEFSG FACTOR | E47: =SUM(F47:J47) -> 1 | F47: =F43/$E43 -> 0.6929420894 | G47: 0.3070579106 | H47: 0 | I47: 0 | J47: 0
B48: DDSO6 FACTOR | E48: =SUM(F48:J48) -> 1 | F48: =IFERROR(F44/$E44,0) -> 0 | G48: =IFERROR(G44/$E44,0) -> 0 | H48: 0 | I48: 0 | J48: 1
B50: Major Adjustment
B51: 1998 Early Retirement | D51: LABOR | E51: 0 | F51: =VLOOKUP($D51,$D$65:$J$77,3,FALSE)*$E51 -> 0 | G51: =VLOOKUP($D51,$D$65:$J$77,4,FALSE)*$E51 -> 0 | H51: =VLOOKUP($D51,$D$65:$J$77,5,FALSE)*$E51 -> 0 | I51: =VLOOKUP($D51,$D$65:$J$77,6,FALSE)*$E51 -> 0 | J51: =VLOOKUP($D51,$D$65:$J$77,7,FALSE)*$E51 -> 0
B52: 1999 Early Retirement | D52: LABOR | E52: 0 | F52: =VLOOKUP($D52,$D$65:$J$77,3,FALSE)*$E52 -> 0 | G52: =VLOOKUP($D52,$D$65:$J$77,4,FALSE)*$E52 -> 0 | H52: =VLOOKUP($D52,$D$65:$J$77,5,FALSE)*$E52 -> 0 | I52: =VLOOKUP($D52,$D$65:$J$77,6,FALSE)*$E52 -> 0 | J52: =VLOOKUP($D52,$D$65:$J$77,7,FALSE)*$E52 -> 0
B53: Transition Planning | D53: PTD | E53: 0 | F53: =VLOOKUP($D53,$D$65:$J$77,3,FALSE)*$E53 -> 0 | G53: =VLOOKUP($D53,$D$65:$J$77,4,FALSE)*$E53 -> 0 | H53: =VLOOKUP($D53,$D$65:$J$77,5,FALSE)*$E53 -> 0 | I53: =VLOOKUP($D53,$D$65:$J$77,6,FALSE)*$E53 -> 0 | J53: =VLOOKUP($D53,$D$65:$J$77,7,FALSE)*$E53 -> 0
B54: Environmental Clean-up | D54: ESD | E54: 0 | F54: =VLOOKUP($D54,$D$65:$J$77,3,FALSE)*$E54 -> 0 | G54: =VLOOKUP($D54,$D$65:$J$77,4,FALSE)*$E54 -> 0 | H54: =VLOOKUP($D54,$D$65:$J$77,5,FALSE)*$E54 -> 0 | I54: =VLOOKUP($D54,$D$65:$J$77,6,FALSE)*$E54 -> 0 | J54: =VLOOKUP($D54,$D$65:$J$77,7,FALSE)*$E54 -> 0
B55: Y2K | D55: PTD | E55: 0 | F55: =VLOOKUP($D55,$D$65:$J$77,3,FALSE)*$E55 -> 0 | G55: =VLOOKUP($D55,$D$65:$J$77,4,FALSE)*$E55 -> 0 | H55: =VLOOKUP($D55,$D$65:$J$77,5,FALSE)*$E55 -> 0 | I55: =VLOOKUP($D55,$D$65:$J$77,6,FALSE)*$E55 -> 0 | J55: =VLOOKUP($D55,$D$65:$J$77,7,FALSE)*$E55 -> 0
B56: Subtotal Major Adjustments | E56: =SUM(E51:E55) -> 0 | F56: 0 | G56: 0 | H56: 0 | I56: 0 | J56: 0
B58: Total 186M SO | E58: =+E44+E56 -> 15.02140875 | F58: 0 | G58: 0 | H58: 0 | I58: 0 | J58: 15.02140875
B60: Total 182 &186 | E60: =SUM(E45,E32) -> 263228.7989 | F60: =SUM(F32,F45) -> 218317.795 | G60: =SUM(G32,G45) -> 20543.35236 | H60: =SUM(H32,H45) -> 9074.31114 | I60: =SUM(I32,I45) -> -242.1044831 | J60: =SUM(J32,J45) -> 15535.44484
E64: Total | F64: Production | G64: Transmission | H64: Poles & Wires | I64: Customers | J64: Miscellaneous
D65: DMSC | E65: =SUM(F65:J65) -> 1 | F65: 0 | G65: 0 | H65: 0 | I65: 0 | J65: 1
D66: DPW | E66: =SUM(F66:J66) -> 1 | F66: 0 | G66: 0 | H66: 1 | I66: 0 | J66: 0
D67: CUST | E67: 1 | F67: 0 | G67: 0 | H67: 0 | I67: 1 | J67: 0
D68: ESD | E68: 1 | F68: 0.3 | G68: 0.1 | H68: 0.6 | I68: 0 | J68: 0
D69: GP | E69: 1 | F69: ='GROSS PLANT'!$E$43 -> 0.505310413 | G69: ='GROSS PLANT'!$F$43 -> 0.2129646467 | H69: ='GROSS PLANT'!$G$43 -> 0.2751478325 | I69: ='GROSS PLANT'!$H$43 -> 0.00657710777 | J69: ='GROSS PLANT'!$I$43 -> 0
D70: RETAIL | E70: 1 | F70: 0 | G70: 0 | H70: 0 | I70: 1 | J70: 0
D71: LABOR | E71: 1 | F71: ='FORM 1'!$C$25 -> 0.4357726636 | G71: ='FORM 1'!$D$25 -> 0.07202827842 | H71: ='FORM 1'!$E$25 -> 0.3463882048 | I71: ='FORM 1'!$F$25 -> 0.1458108532 | J71: ='FORM 1'!$G$25 -> 0
D72: P | E72: 1 | F72: ='FORM 1'!$C$13 -> 1 | G72: ='FORM 1'!$D$13 -> 0 | H72: ='FORM 1'!$E$13 -> 0 | I72: ='FORM 1'!$F$13 -> 0 | J72: ='FORM 1'!$G$13 -> 0
D73: PT | E73: =SUM(F73:J73) -> 1 | F73: ='FORM 1'!$C$17 -> 0.696147262 | G73: ='FORM 1'!$D$17 -> 0.303852738 | H73: ='FORM 1'!$E$17 -> 0 | I73: ='FORM 1'!$F$17 -> 0 | J73: ='FORM 1'!$G$17 -> 0
D74: PTD | E74: 1 | F74: ='FORM 1'!$C$16 -> 0.5035611251 | G74: ='FORM 1'!$D$16 -> 0.2197931888 | H74: ='FORM 1'!$E$16 -> 0.2766456861 | I74: ='FORM 1'!$F$16 -> 0 | J74: ='FORM 1'!$G$16 -> 0
D75: T | E75: 1 | F75: ='FORM 1'!$C$14 -> 0 | G75: ='FORM 1'!$D$14 -> 1 | H75: ='FORM 1'!$E$14 -> 0 | I75: ='FORM 1'!$F$14 -> 0 | J75: ='FORM 1'!$G$14 -> 0
D76: TAXDEPR | E76: 1 | F76: ='TAX DEPR'!C24 -> 0.5750385769 | G76: ='TAX DEPR'!D24 -> 0.1785119295 | H76: ='TAX DEPR'!E24 -> 0.2413763575 | I76: ='TAX DEPR'!F24 -> 0.00507313606 | J76: ='TAX DEPR'!G24 -> 0
D77: TD | E77: 1 | F77: ='FORM 1'!$C$18 -> 0 | G77: ='FORM 1'!$D$18 -> 0.4427396804 | H77: ='FORM 1'!$E$18 -> 0.5572603196 | I77: ='FORM 1'!$F$18 -> 0 | J77: ='FORM 1'!$G$18 -> 0
